{"text_format":"1","workbook":"xlsx","n_sheets":7,"sheets":["PSPパラメータ対応表","ファイル名抽出方法の詳細","（参考）SearchablePDF対応欧州言語一覧","（参考）禁則表1(PSP記載読込設定同士の組禁)","（参考）中国語の並び替え","(参考）OOXML出力形式 ","リファイン履歴"],"not_rendered":{"charts":0,"images":15,"macros":1,"external_links":0,"defined_names":0,"comments":1,"pivot_tables":0},"unopened":[],"bounds":{"document_bytes":16777216,"sheet_cells":100000,"rows_first":2000,"rows_last":500,"rows_between":2000,"halvings":0,"cell_chars":16384,"cell_head_chars":4096},"cells_cut":0,"cells_raw":0,"read":"whole","date_system":"1900"}

{"sheet":"PSPパラメータ対応表","index":0,"n_rows":1006,"n_cols":17,"rows_kept":1006,"cut":false,"hidden":false,"merged":[]}
[null,null,null,null,null,null,"SP","F","BIN",4,3,2,1]
[null,"PSPがMFPに対し指定する読込み設定を下記に示す。",null,null,null,null,null,1,{"$f":"IF(H2=\"\",\"\",DEC2BIN(H2,4))","v":"0001"},{"$f":"IF($I2=\"\",\"\",VALUE(MID($I2,1,1)))","v":0},{"$f":"IF($I2=\"\",\"\",VALUE(MID($I2,2,1)))","v":0},{"$f":"IF($I2=\"\",\"\",VALUE(MID($I2,3,1)))","v":0},{"$f":"IF($I2=\"\",\"\",VALUE(MID($I2,4,1)))","v":1}]
[null,"(※該当する設定値をMFPが持たない場合は初期値を用いる。)",null,null,null,null,null,1,{"$f":"IF(H3=\"\",\"\",DEC2BIN(H3,4))","v":"0001"},{"$f":"IF($I3=\"\",\"\",VALUE(MID($I3,1,1)))","v":0},{"$f":"IF($I3=\"\",\"\",VALUE(MID($I3,2,1)))","v":0},{"$f":"IF($I3=\"\",\"\",VALUE(MID($I3,3,1)))","v":0},{"$f":"IF($I3=\"\",\"\",VALUE(MID($I3,4,1)))","v":1}]
[null,null,null,null,null,null,null,null,{"$f":"IF(H4=\"\",\"\",DEC2BIN(H4,4))","v":""},{"$f":"IF($I4=\"\",\"\",VALUE(MID($I4,1,1)))","v":""},{"$f":"IF($I4=\"\",\"\",VALUE(MID($I4,2,1)))","v":""},{"$f":"IF($I4=\"\",\"\",VALUE(MID($I4,3,1)))","v":""},{"$f":"IF($I4=\"\",\"\",VALUE(MID($I4,4,1)))","v":""}]
[null,null,"カラーモード",null,null,null,null,1,"0001",0,0,0,1]
[null,null,"PSPの設定値","MFPの設定値",null,null,null,1,"0001",0,0,0,1]
[null,null,"BlackAndWhite1","白黒２値",null,null,null,1,"0001",0,0,0,1,null,null,"BlackAndWhite1"]
[null,null,"Grayscale4","-",null,null,null,1,"0001",0,0,0,1,null,null,"Grayscale4"]
[null,null,"Grayscale8","グレースケール",null,null,null,1,"0001",0,0,0,1,null,null,"Grayscale8"]
[null,null,"Grayscale16","-",null,null,null,1,"0001",0,0,0,1,null,null,"Grayscale16"]
[null,null,"RGB24","フルカラー",null,null,null,1,"0001",0,0,0,1,null,null,"RGB24"]
[null,null,"RGB48","-",null,null,null,1,"0001",0,0,0,1,null,null,"RGB48"]
[null,null,"RGBa32","-",null,null,null,1,"0001",0,0,0,1,null,null,"RGBa32"]
[null,null,"RGBa64","-",null,null,null,1,"0001",0,0,0,1,null,null,"RGBa64"]
[null,null,null,null,null,null,null,null,"","","","",""]
[null,null,"画像フォーマット",null,null,null,null,1,"0001",0,0,0,1]
[null,null,"PSPの設定値","MFPの設定値",null,null,null,1,"0001",0,0,0,1]
[null,null,"dib","-",null,null,null,1,"0001",0,0,0,1,null,null,"dib"]
[null,null,"exif","-",null,null,null,1,"0001",0,0,0,1,null,null,"exif"]
[null,null,"jbig","-",null,null,null,1,"0001",0,0,0,1,null,null,"jbig"]
[null,null,"jfif","JPEG",null,null,null,1,"0001",0,0,0,1,null,null,"jfif"]
[null,null,"jpeg2k","-",null,null,null,1,"0001",0,0,0,1,null,null,"jpeg2k"]
[null,null,"pdf-a","PDF","*PSPの設定値はpdf-aだが、MFPから送信するファイルはPDFであればOK。コンパクトPDF、サーチャブルPDFなどもOKとする。",null,null,1,"0001",0,0,0,1,null,null,"pdf-a"]
[null,null,"png","-",null,null,null,1,"0001",0,0,0,1,null,null,"png"]
[null,null,"tiff-(single/multi)-uncompressed","Tiff　uncompressed (一枚毎/一括)",null,null,null,1,"0001",0,0,0,1,null,null,"tiff-(single/multi)-uncompressed"]
[null,null,"tiff-(single/multi)-g4","Tiff　白黒２値圧縮方法・ＭＭＲ (一枚毎/一括)",null,null,null,1,"0001",0,0,0,1,null,null,"tiff-(single/multi)-g4"]
[null,null,"tiff-(single/multi)-g3mh","Tiff　白黒２値圧縮方法・ＭＨ (一枚毎/一括)",null,null,null,1,"0001",0,0,0,1,null,null,"tiff-(single/multi)-g3mh"]
[null,null,"tiff-(single/multi)-jpeg-tn2","ColorTiff (一枚毎/一括)",null,null,null,1,"0001",0,0,0,1,null,null,"tiff-(single/multi)-jpeg-tn2"]
[null,null,"xps","XPS","*MFPから送信するファイルはXPSであればOK。コンパクトXPSでも良い",null,null,1,"0001",0,0,0,1,null,null,"xps","XPS"]
[null,null,null,null,null,null,null,null,"","","","",""]
[null,null,"解像度",null,null,null,null,1,"0001",0,0,0,1]
[null,null,"PSPの設定値","MFPの設定値",null,null,null,1,"0001",0,0,0,1]
[null,null,"整数で自由に設定される","200×200dpi",null,null,null,1,"0001",0,0,0,1,null,null,null,"200×200dpi"]
[null,null,null,"300×300dpi",null,null,null,1,"0001",0,0,0,1,null,null,null,"300×300dpi"]
[null,null,null,"400×400dpi",null,null,null,1,"0001",0,0,0,1,null,null,null,"400×400dpi"]
[null,null,null,"600×600dpi",null,null,null,1,"0001",0,0,0,1,null,null,null,"600×600dpi"]
[null,null,null,null,null,null,null,null,"","","","",""]
[null,null,null,null,null,null,null,null,"","","","",""]
[null,null,"【履　　歴】","2009/1/29　新規作成　姉崎",null,null,null,1,"0001",0,0,0,1]
[null,null,null,"2011/6/20　改訂　河邉","統合仕様書に反映",null,null,1,"0001",0,0,0,1]
[null,null,null,null,null,null,"e","e","e","e","e","e","e"]
[]
[]
[null,null,null,null,null,null,null,null,{"$f":"SUM(M2:M40)","v":34}]
[]
[]
[]
[]
[]
[]
[]
[]
[]
[]
[]
[]
[]
[]
[]
[]
[]
[]
[]
[]
[]
[]
[]
[]
[]
[]
[]
[]
[]
[]
[]
[]
[]
[]
[]
[]
[]
[]
[]
[]
[]
[]
[]
[]
[]
[]
[]
[]
[]
[]
[]
[]
[]
[]
[]
[]
[]
[]
[]
[]
[]
[]
[]
[]
[]
[]
[]
[]
[]
[]
[]
[]
[]
[]
[]
[]
[]
[]
[]
[]
[]
[]
[]
[]
[]
[]
[]
[]
[]
[]
[]
[]
[]
[]
[]
[]
[]
[]
[]
[]
[]
[]
[]
[]
[]
[]
[]
[]
[]
[]
[]
[]
[]
[]
[]
[]
[]
[]
[]
[]
[]
[]
[]
[]
[]
[]
[]
[]
[]
[]
[]
[]
[]
[]
[]
[]
[]
[]
[]
[]
[]
[]
[]
[]
[]
[]
[]
[]
[]
[]
[]
[]
[]
[]
[]
[]
[]
[]
[]
[]
[]
[]
[]
[]
[]
[]
[]
[]
[]
[]
[]
[]
[]
[]
[]
[]
[]
[]
[]
[]
[]
[]
[]
[]
[]
[]
[]
[]
[]
[]
[]
[]
[]
[]
[]
[]
[]
[]
[]
[]
[]
[]
[]
[]
[]
[]
[]
[]
[]
[]
[]
[]
[]
[]
[]
[]
[]
[]
[]
[]
[]
[]
[]
[]
[]
[]
[]
[]
[]
[]
[]
[]
[]
[]
[]
[]
[]
[]
[]
[]
[]
[]
[]
[]
[]
[]
[]
[]
[]
[]
[]
[]
[]
[]
[]
[]
[]
[]
[]
[]
[]
[]
[]
[]
[]
[]
[]
[]
[]
[]
[]
[]
[]
[]
[]
[]
[]
[]
[]
[]
[]
[]
[]
[]
[]
[]
[]
[]
[]
[]
[]
[]
[]
[]
[]
[]
[]
[]
[]
[]
[]
[]
[]
[]
[]
[]
[]
[]
[]
[]
[]
[]
[]
[]
[]
[]
[]
[]
[]
[]
[]
[]
[]
[]
[]
[]
[]
[]
[]
[]
[]
[]
[]
[]
[]
[]
[]
[]
[]
[]
[]
[]
[]
[]
[]
[]
[]
[]
[]
[]
[]
[]
[]
[]
[]
[]
[]
[]
[]
[]
[]
[]
[]
[]
[]
[]
[]
[]
[]
[]
[]
[]
[]
[]
[]
[]
[]
[]
[]
[]
[]
[]
[]
[]
[]
[]
[]
[]
[]
[]
[]
[]
[]
[]
[]
[]
[]
[]
[]
[]
[]
[]
[]
[]
[]
[]
[]
[]
[]
[]
[]
[]
[]
[]
[]
[]
[]
[]
[]
[]
[]
[]
[]
[]
[]
[]
[]
[]
[]
[]
[]
[]
[]
[]
[]
[]
[]
[]
[]
[]
[]
[]
[]
[]
[]
[]
[]
[]
[]
[]
[]
[]
[]
[]
[]
[]
[]
[]
[]
[]
[]
[]
[]
[]
[]
[]
[]
[]
[]
[]
[]
[]
[]
[]
[]
[]
[]
[]
[]
[]
[]
[]
[]
[]
[]
[]
[]
[]
[]
[]
[]
[]
[]
[]
[]
[]
[]
[]
[]
[]
[]
[]
[]
[]
[]
[]
[]
[]
[]
[]
[]
[]
[]
[]
[]
[]
[]
[]
[]
[]
[]
[]
[]
[]
[]
[]
[]
[]
[]
[]
[]
[]
[]
[]
[]
[]
[]
[]
[]
[]
[]
[]
[]
[]
[]
[]
[]
[]
[]
[]
[]
[]
[]
[]
[]
[]
[]
[]
[]
[]
[]
[]
[]
[]
[]
[]
[]
[]
[]
[]
[]
[]
[]
[]
[]
[]
[]
[]
[]
[]
[]
[]
[]
[]
[]
[]
[]
[]
[]
[]
[]
[]
[]
[]
[]
[]
[]
[]
[]
[]
[]
[]
[]
[]
[]
[]
[]
[]
[]
[]
[]
[]
[]
[]
[]
[]
[]
[]
[]
[]
[]
[]
[]
[]
[]
[]
[]
[]
[]
[]
[]
[]
[]
[]
[]
[]
[]
[]
[]
[]
[]
[]
[]
[]
[]
[]
[]
[]
[]
[]
[]
[]
[]
[]
[]
[]
[]
[]
[]
[]
[]
[]
[]
[]
[]
[]
[]
[]
[]
[]
[]
[]
[]
[]
[]
[]
[]
[]
[]
[]
[]
[]
[]
[]
[]
[]
[]
[]
[]
[]
[]
[]
[]
[]
[]
[]
[]
[]
[]
[]
[]
[]
[]
[]
[]
[]
[]
[]
[]
[]
[]
[]
[]
[]
[]
[]
[]
[]
[]
[]
[]
[]
[]
[]
[]
[]
[]
[]
[]
[]
[]
[]
[]
[]
[]
[]
[]
[]
[]
[]
[]
[]
[]
[]
[]
[]
[]
[]
[]
[]
[]
[]
[]
[]
[]
[]
[]
[]
[]
[]
[]
[]
[]
[]
[]
[]
[]
[]
[]
[]
[]
[]
[]
[]
[]
[]
[]
[]
[]
[]
[]
[]
[]
[]
[]
[]
[]
[]
[]
[]
[]
[]
[]
[]
[]
[]
[]
[]
[]
[]
[]
[]
[]
[]
[]
[]
[]
[]
[]
[]
[]
[]
[]
[]
[]
[]
[]
[]
[]
[]
[]
[]
[]
[]
[]
[]
[]
[]
[]
[]
[]
[]
[]
[]
[]
[]
[]
[]
[]
[]
[]
[]
[]
[]
[]
[]
[]
[]
[]
[]
[]
[]
[]
[]
[]
[]
[]
[]
[]
[]
[]
[]
[]
[]
[]
[]
[]
[]
[]
[]
[]
[]
[]
[]
[]
[]
[]
[]
[]
[]
[]
[]
[]
[]
[]
[]
[]
[]
[]
[]
[]
[]
[]
[]
[]
[]
[]
[]
[]
[]
[]
[]
[]
[]
[]
[]
[]
[]
[]
[]
[]
[]
[]
[]
[]
[]
[]
[]
[]
[]
[]
[]
[]
[]
[]
[]
[]
[]
[]
[]
[]
[]
[]
[]
[]
[]
[]
[]
[]
[]
[]
[]
[]
[]
[]
[]
[]
[]
[]
[]
[]
[]
[]
[]
[]
[]
[null,null,null,null,null,null,0]
[null,null,null,null,null,null,0]
[null,null,null,null,null,null,0]
[null,null,null,null,null,null,0]
[null,null,null,null,null,null,0]
[null,null,null,null,null,null,0]

{"sheet":"ファイル名抽出方法の詳細","index":1,"n_rows":1013,"n_cols":20,"rows_kept":1013,"cut":false,"hidden":false,"merged":[]}
[null,null,null,null,null,null,null,null,null,null,null,null,null,"SP","F","BIN",4,3,2,1]
["ファイル名抽出方法の詳細",null,null,null,null,null,null,null,null,null,null,null,null,null,1,{"$f":"IF(O2=\"\",\"\",DEC2BIN(O2,4))","v":"0001"},{"$f":"IF($P2=\"\",\"\",VALUE(MID($P2,1,1)))","v":0},{"$f":"IF($P2=\"\",\"\",VALUE(MID($P2,2,1)))","v":0},{"$f":"IF($P2=\"\",\"\",VALUE(MID($P2,3,1)))","v":0},{"$f":"IF($P2=\"\",\"\",VALUE(MID($P2,4,1)))","v":1}]
[null,null,null,null,null,null,null,null,null,null,null,null,null,null,null,{"$f":"IF(O3=\"\",\"\",DEC2BIN(O3,4))","v":""},{"$f":"IF($P3=\"\",\"\",VALUE(MID($P3,1,1)))","v":""},{"$f":"IF($P3=\"\",\"\",VALUE(MID($P3,2,1)))","v":""},{"$f":"IF($P3=\"\",\"\",VALUE(MID($P3,3,1)))","v":""},{"$f":"IF($P3=\"\",\"\",VALUE(MID($P3,4,1)))","v":""}]
[null,null,null,null,null,null,null,null,null,null,null,null,null,null,null,"","","","",""]
[null,"OCRにより抽出される各文字列は、下記の情報を持つ。",null,null,null,null,null,null,null,null,null,null,null,null,1,"0001",0,0,0,1]
[null,"　・文字数",null,null,null,null,null,null,null,null,null,null,null,null,1,"0001",0,0,0,1]
[null,"　・縦書き/横書き",null,null,null,null,null,null,null,null,null,null,null,null,1,"0001",0,0,0,1]
[null,"　・矩形位置(図4に示す top, bottom, left, rightの座標)",null,null,null,null,null,null,null,null,null,null,null,null,1,"0001",0,0,0,1]
[null,null,null,null,null,null,null,null,null,null,null,null,null,null,null,"","","","",""]
[null,null,null,null,null,null,null,null,null,null,null,null,null,null,null,"","","","",""]
[null,"下記の方法により、縦書き、横書きを含めた全文字列の評価値算出し、最大評価値の文字列をファイル名として抽出する。",null,null,null,null,null,null,null,null,null,null,null,null,1,"0001",0,0,0,1]
[null,null,null,null,null,null,null,null,null,null,null,null,null,null,null,"","","","",""]
[null,"　評価値 = 位置の評価値 + 文字サイズ評価値",null,null,null,null,null,null,null,null,null,null,null,null,1,"0001",0,0,0,1]
[null,null,null,null,null,null,null,null,null,null,null,null,null,null,null,"","","","",""]
[null,null,null,null,null,null,null,null,null,null,null,null,null,null,null,"","","","",""]
[null,"(1) 位置の評価値",null,null,null,null,null,null,null,null,null,null,null,null,1,"0001",0,0,0,1]
[null,null,null,null,null,null,null,null,null,null,null,null,null,null,null,"","","","",""]
[null,"　[横書きの場合]",null,null,null,null,null,null,null,null,null,null,null,null,1,"0001",0,0,0,1]
[null,"　　上下方向の優先度を上>下、左右方向の優先度を左>右とするため、",null,null,null,null,null,null,null,null,null,null,null,null,1,"0001",0,0,0,1]
[null,"　　画像の基点を左上(0, 0)とし、基点から文字列の基点(left, top)の距離が短いほど評価値が大きくなるように設定する(図4参照)",null,null,null,null,null,null,null,null,null,null,null,null,1,"0001",0,0,0,1]
[null,"　　位置の評価値 = α x (Width – left) + β x (Height – top)",null,null,null,null,null,null,null,null,null,null,null,null,1,"0001",0,0,0,1]
[null,null,null,null,null,null,null,null,null,null,null,null,null,null,null,"","","","",""]
[null,"　[縦書きの場合]",null,null,null,null,null,null,null,null,null,null,null,null,1,"0001",0,0,0,1]
[null,"　　上下方向の優先度を上>下、左右方向の優先度を左>右とするため、",null,null,null,null,null,null,null,null,null,null,null,null,1,"0001",0,0,0,1]
[null,"　　画像の基点を左上(0, 0)とし、基点から文字列の基点(left, top)の距離が短いほど評価値が大きくなるように設定する(図4参照)",null,null,null,null,null,null,null,null,null,null,null,null,1,"0001",0,0,0,1]
[null,"　　位置の評価値 = α x right + β x (Height – top)",null,null,null,null,null,null,null,null,null,null,null,null,1,"0001",0,0,0,1]
[null,null,null,null,null,null,null,null,null,null,null,null,null,null,null,"","","","",""]
[null,"※ α, βは上下方向と左右方向の重み係数 (横書きの場合α=3、β=2、縦書きの場合α=2、β=3を目安に調整する)",null,null,null,null,null,null,null,null,null,null,null,null,1,"0001",0,0,0,1]
[null,"　　また、原稿サイズによって、位置の評価値が大きく異なるため、A4サイズでの評価値に補正する。",null,null,null,null,null,null,null,null,null,null,null,null,1,"0001",0,0,0,1]
[null,null,null,null,null,null,null,null,null,null,null,null,null,null,null,"","","","",""]
[null,null,null,null,null,null,null,null,null,null,null,null,null,null,null,"","","","",""]
[null,"(2) 文字サイズの評価値",null,null,null,null,null,null,null,null,null,null,null,null,1,"0001",0,0,0,1]
[null,null,null,null,null,null,null,null,null,null,null,null,null,null,null,"","","","",""]
[null,"　文字サイズ評価値 = γ x 文字サイズ",null,null,null,null,null,null,null,null,null,null,null,null,1,"0001",0,0,0,1]
[null,"　※ γは文字サイズの影響度の重み係数 (γ=50を目安に調整する)",null,null,null,null,null,null,null,null,null,null,null,null,1,"0001",0,0,0,1]
[null,null,null,null,null,null,null,null,null,null,null,null,null,null,null,"","","","",""]
[null,"　[横書きの場合]",null,null,null,null,null,null,null,null,null,null,null,null,1,"0001",0,0,0,1]
[null,"　　文字列の幅を文字サイズとする。",null,null,null,null,null,null,null,null,null,null,null,null,1,"0001",0,0,0,1]
[null,"　　文字サイズ = bottom – top",null,null,null,null,null,null,null,null,null,null,null,null,1,"0001",0,0,0,1]
[null,null,null,null,null,null,null,null,null,null,null,null,null,null,null,"","","","",""]
[null,"　[縦書きの場合]",null,null,null,null,null,null,null,null,null,null,null,null,1,"0001",0,0,0,1]
[null,"　　文字列の幅は半角と全角で異なるため、文字列の長さを文字数で割った1文字あたりの長さを文字サイズとする。",null,null,null,null,null,null,null,null,null,null,null,null,1,"0001",0,0,0,1]
[null,"　　文字サイズ = (bottom - top) / 文字数",null,null,null,null,null,null,null,null,null,null,null,null,1,"0001",0,0,0,1]
[null,null,null,null,null,null,null,null,null,null,null,null,null,null,null,"","","","",""]
[null,null,null,null,null,null,null,null,null,null,null,null,null,null,null,"","","","",""]
[null,null,null,null,null,null,null,null,null,null,null,null,null,null,null,"","","","",""]
[null,null,null,null,null,null,null,null,null,null,null,null,null,null,null,"","","","",""]
[null,null,null,null,null,null,null,null,null,null,null,null,null,null,null,"","","","",""]
[null,null,null,null,null,null,null,null,null,null,null,null,null,null,null,"","","","",""]
[null,null,null,null,null,null,null,null,null,null,null,null,null,null,null,"","","","",""]
[null,null,null,null,null,null,null,null,null,null,null,null,null,null,null,"","","","",""]
[null,null,null,null,null,null,null,null,null,null,null,null,null,null,null,"","","","",""]
[null,null,null,null,null,null,null,null,null,null,null,null,null,null,null,"","","","",""]
[null,null,null,null,null,null,null,null,null,null,null,null,null,null,null,"","","","",""]
[null,null,null,null,null,null,null,null,null,null,null,null,null,null,null,"","","","",""]
[null,null,null,null,null,null,null,null,null,null,null,null,null,null,null,"","","","",""]
[null,null,null,null,null,null,null,null,null,null,null,null,null,null,null,"","","","",""]
[null,null,null,null,null,null,null,null,null,null,null,null,null,null,null,"","","","",""]
[null,null,null,null,null,null,null,null,null,null,null,null,null,null,null,"","","","",""]
[null,null,null,null,null,null,null,null,null,null,null,null,null,null,null,"","","","",""]
[null,null,null,null,null,null,null,null,null,null,null,null,null,null,null,"","","","",""]
[null,null,null,null,null,null,null,null,null,null,null,null,null,null,null,"","","","",""]
[null,null,null,null,null,null,null,null,null,null,null,null,null,null,null,"","","","",""]
[null,null,null,null,null,null,null,null,null,null,null,null,null,null,null,"","","","",""]
[null,null,null,null,null,null,null,null,null,null,null,null,null,null,null,"","","","",""]
[null,null,null,null,null,null,null,null,null,null,null,null,null,null,null,"","","","",""]
[null,null,null,null,null,null,null,null,null,null,null,null,null,null,null,{"$f":"IF(O67=\"\",\"\",DEC2BIN(O67,4))","v":""},{"$f":"IF($P67=\"\",\"\",VALUE(MID($P67,1,1)))","v":""},{"$f":"IF($P67=\"\",\"\",VALUE(MID($P67,2,1)))","v":""},{"$f":"IF($P67=\"\",\"\",VALUE(MID($P67,3,1)))","v":""},{"$f":"IF($P67=\"\",\"\",VALUE(MID($P67,4,1)))","v":""}]
[null,null,null,null,null,null,null,null,null,null,null,null,null,null,null,"","","","",""]
[null,null,null,null,null,null,null,null,null,null,null,null,null,null,null,"","","","",""]
[null,null,null,null,null,null,null,null,null,null,null,null,null,null,null,"","","","",""]
[null,"(3)抽出した文字列が1文字だった場合、OCRの誤検出が考えられる為、1文字の文字列はファイル名候補としない。(*1)",null,null,null,null,null,null,null,null,null,null,null,null,1,"0001",0,0,0,1]
[null,null,null,null,null,null,null,null,null,null,null,null,null,null,null,"","","","",""]
[null,null,null,null,null,null,null,null,null,null,null,null,null,null,null,"","","","",""]
[null,null,null,null,null,null,null,null,null,null,null,null,null,null,null,"","","","",""]
[null,null,null,null,null,null,null,null,null,null,null,null,null,null,null,"","","","",""]
[null,null,null,null,null,null,null,null,null,null,null,null,null,null,null,"","","","",""]
["【履歴】",null,null,null,null,null,null,null,null,null,null,null,null,null,1,"0001",0,0,0,1]
[null,"2010/9/21　初版　塚本　Minerva 1st対応。(UV-00780) サーチャブルPDFのファイル名生成機能",null,null,null,null,null,null,null,null,null,null,null,null,1,"0001",0,0,0,1]
[null,"2011/1/24　改訂　塚本　(*1)CQ:340309対応　抽出文字列が1文字の場合はファイル名候補としない",null,null,null,null,null,null,null,null,null,null,null,null,1,"0001",0,0,0,1]
[null,null,null,null,null,null,null,null,null,null,null,null,null,"e","e","e","e","e","e","e"]
[]
[]
[]
[]
[]
[]
[]
[]
[]
[]
[]
[]
[]
[]
[]
[]
[]
[]
[]
[]
[]
[]
[]
[]
[]
[]
[]
[]
[]
[]
[]
[]
[]
[]
[]
[]
[]
[]
[]
[]
[]
[]
[]
[]
[]
[]
[]
[]
[]
[]
[]
[]
[]
[]
[]
[]
[]
[]
[]
[]
[]
[]
[]
[]
[]
[]
[]
[]
[]
[]
[]
[]
[]
[]
[]
[]
[]
[]
[]
[]
[]
[]
[]
[]
[]
[]
[]
[]
[]
[]
[]
[]
[]
[]
[]
[]
[]
[]
[]
[]
[]
[]
[]
[]
[]
[]
[]
[]
[]
[]
[]
[]
[]
[]
[]
[]
[]
[]
[]
[]
[]
[]
[]
[]
[]
[]
[]
[]
[]
[]
[]
[]
[]
[]
[]
[]
[]
[]
[]
[]
[]
[]
[]
[]
[]
[]
[]
[]
[]
[]
[]
[]
[]
[]
[]
[]
[]
[]
[]
[]
[]
[]
[]
[]
[]
[]
[]
[]
[]
[]
[]
[]
[]
[]
[]
[]
[]
[]
[]
[]
[]
[]
[]
[]
[]
[]
[]
[]
[]
[]
[]
[]
[]
[]
[]
[]
[]
[]
[]
[]
[]
[]
[]
[]
[]
[]
[]
[]
[]
[]
[]
[]
[]
[]
[]
[]
[]
[]
[]
[]
[]
[]
[]
[]
[]
[]
[]
[]
[]
[]
[]
[]
[]
[]
[]
[]
[]
[]
[]
[]
[]
[]
[]
[]
[]
[]
[]
[]
[]
[]
[]
[]
[]
[]
[]
[]
[]
[]
[]
[]
[]
[]
[]
[]
[]
[]
[]
[]
[]
[]
[]
[]
[]
[]
[]
[]
[]
[]
[]
[]
[]
[]
[]
[]
[]
[]
[]
[]
[]
[]
[]
[]
[]
[]
[]
[]
[]
[]
[]
[]
[]
[]
[]
[]
[]
[]
[]
[]
[]
[]
[]
[]
[]
[]
[]
[]
[]
[]
[]
[]
[]
[]
[]
[]
[]
[]
[]
[]
[]
[]
[]
[]
[]
[]
[]
[]
[]
[]
[]
[]
[]
[]
[]
[]
[]
[]
[]
[]
[]
[]
[]
[]
[]
[]
[]
[]
[]
[]
[]
[]
[]
[]
[]
[]
[]
[]
[]
[]
[]
[]
[]
[]
[]
[]
[]
[]
[]
[]
[]
[]
[]
[]
[]
[]
[]
[]
[]
[]
[]
[]
[]
[]
[]
[]
[]
[]
[]
[]
[]
[]
[]
[]
[]
[]
[]
[]
[]
[]
[]
[]
[]
[]
[]
[]
[]
[]
[]
[]
[]
[]
[]
[]
[]
[]
[]
[]
[]
[]
[]
[]
[]
[]
[]
[]
[]
[]
[]
[]
[]
[]
[]
[]
[]
[]
[]
[]
[]
[]
[]
[]
[]
[]
[]
[]
[]
[]
[]
[]
[]
[]
[]
[]
[]
[]
[]
[]
[]
[]
[]
[]
[]
[]
[]
[]
[]
[]
[]
[]
[]
[]
[]
[]
[]
[]
[]
[]
[]
[]
[]
[]
[]
[]
[]
[]
[]
[]
[]
[]
[]
[]
[]
[]
[]
[]
[]
[]
[]
[]
[]
[]
[]
[]
[]
[]
[]
[]
[]
[]
[]
[]
[]
[]
[]
[]
[]
[]
[]
[]
[]
[]
[]
[]
[]
[]
[]
[]
[]
[]
[]
[]
[]
[]
[]
[]
[]
[]
[]
[]
[]
[]
[]
[]
[]
[]
[]
[]
[]
[]
[]
[]
[]
[]
[]
[]
[]
[]
[]
[]
[]
[]
[]
[]
[]
[]
[]
[]
[]
[]
[]
[]
[]
[]
[]
[]
[]
[]
[]
[]
[]
[]
[]
[]
[]
[]
[]
[]
[]
[]
[]
[]
[]
[]
[]
[]
[]
[]
[]
[]
[]
[]
[]
[]
[]
[]
[]
[]
[]
[]
[]
[]
[]
[]
[]
[]
[]
[]
[]
[]
[]
[]
[]
[]
[]
[]
[]
[]
[]
[]
[]
[]
[]
[]
[]
[]
[]
[]
[]
[]
[]
[]
[]
[]
[]
[]
[]
[]
[]
[]
[]
[]
[]
[]
[]
[]
[]
[]
[]
[]
[]
[]
[]
[]
[]
[]
[]
[]
[]
[]
[]
[]
[]
[]
[]
[]
[]
[]
[]
[]
[]
[]
[]
[]
[]
[]
[]
[]
[]
[]
[]
[]
[]
[]
[]
[]
[]
[]
[]
[]
[]
[]
[]
[]
[]
[]
[]
[]
[]
[]
[]
[]
[]
[]
[]
[]
[]
[]
[]
[]
[]
[]
[]
[]
[]
[]
[]
[]
[]
[]
[]
[]
[]
[]
[]
[]
[]
[]
[]
[]
[]
[]
[]
[]
[]
[]
[]
[]
[]
[]
[]
[]
[]
[]
[]
[]
[]
[]
[]
[]
[]
[]
[]
[]
[]
[]
[]
[]
[]
[]
[]
[]
[]
[]
[]
[]
[]
[]
[]
[]
[]
[]
[]
[]
[]
[]
[]
[]
[]
[]
[]
[]
[]
[]
[]
[]
[]
[]
[]
[]
[]
[]
[]
[]
[]
[]
[]
[]
[]
[]
[]
[]
[]
[]
[]
[]
[]
[]
[]
[]
[]
[]
[]
[]
[]
[]
[]
[]
[]
[]
[]
[]
[]
[]
[]
[]
[]
[]
[]
[]
[]
[]
[]
[]
[]
[]
[]
[]
[]
[]
[]
[]
[]
[]
[]
[]
[]
[]
[]
[]
[]
[]
[]
[]
[]
[]
[]
[]
[]
[]
[]
[]
[]
[]
[]
[]
[]
[]
[]
[]
[]
[]
[]
[]
[]
[]
[]
[]
[]
[]
[]
[]
[]
[]
[]
[]
[]
[]
[]
[]
[]
[]
[]
[]
[]
[]
[]
[]
[]
[]
[]
[]
[null,null,null,null,null,null,null,null,null,null,null,null,null,0]
[null,null,null,null,null,null,null,null,null,null,null,null,null,0]
[null,null,null,null,null,null,null,null,null,null,null,null,null,0]
[null,null,null,null,null,null,null,null,null,null,null,null,null,0]
[null,null,null,null,null,null,null,null,null,null,null,null,null,0]
[null,null,null,null,null,null,null,null,null,null,null,null,null,0]
[null,null,null,null,null,null,null,null,null,null,null,null,null,0]
[null,null,null,null,null,null,null,null,null,null,null,null,null,0]
[null,null,null,null,null,null,null,null,null,null,null,null,null,0]
[null,null,null,null,null,null,null,null,null,null,null,null,null,0]
[null,null,null,null,null,null,null,null,null,null,null,null,null,0]
[null,null,null,null,null,null,null,null,null,null,null,null,null,0]
[null,null,null,null,null,null,null,null,null,null,null,null,null,0]

{"sheet":"（参考）SearchablePDF対応欧州言語一覧","index":2,"n_rows":1015,"n_cols":34,"rows_kept":1015,"cut":false,"hidden":false,"merged":[]}
[null,null,null,null,null,null,null,null,null,null,null,null,null,null,null,"SP","F","BIN",4,3,2,1]
[null,"●OCR対応言語一覧",null,null,null,null,null,null,null,null,null,null,null,null,null,null,1,{"$f":"IF(Q2=\"\",\"\",DEC2BIN(Q2,4))","v":"0001"},{"$f":"IF($R2=\"\",\"\",VALUE(MID($R2,1,1)))","v":0},{"$f":"IF($R2=\"\",\"\",VALUE(MID($R2,2,1)))","v":0},{"$f":"IF($R2=\"\",\"\",VALUE(MID($R2,3,1)))","v":0},{"$f":"IF($R2=\"\",\"\",VALUE(MID($R2,4,1)))","v":1}]
[null,null,null,null,null,null,null,null,null,null,null,null,null,null,null,null,null,{"$f":"IF(Q3=\"\",\"\",DEC2BIN(Q3,4))","v":""},{"$f":"IF($R3=\"\",\"\",VALUE(MID($R3,1,1)))","v":""},{"$f":"IF($R3=\"\",\"\",VALUE(MID($R3,2,1)))","v":""},{"$f":"IF($R3=\"\",\"\",VALUE(MID($R3,3,1)))","v":""},{"$f":"IF($R3=\"\",\"\",VALUE(MID($R3,4,1)))","v":""}]
[null,null,null,"言語",null,null,null,null,"アジア系言語","優先順位",null,null,"欧州系言語","優先順位",null,null,1,"0001",0,0,0,1,null,null,null,null,null,null,null,null,null,"優先順位"]
[null,1,"Japanese","日本語",null,null,null,1,"日本語",1,null,1,"英語",1,null,null,1,"0001",0,0,0,1,null,1,"Japanese",null,null,null,null,1,null,1,null,1]
[null,2,"English","英語",null,null,null,2,"中国語",2,null,2,"フランス語",2,null,null,1,"0001",0,0,0,1,null,2,"English",null,null,null,null,2,null,2,null,2]
[null,3,"French","フランス語",null,null,null,3,"台湾語",2,null,3,"イタリア語",2,null,null,1,"0001",0,0,0,1,null,3,"French",null,null,null,null,3,null,2,null,3]
[null,4,"Italian","イタリア語",null,null,null,4,"韓国語",2,null,4,"ドイツ語",2,null,null,1,"0001",0,0,0,1,null,4,"Italian",null,null,null,null,4,null,2,null,4]
[null,5,"German","ドイツ語",null,null,null,null,null,null,null,5,"スペイン語",2,null,null,1,"0001",0,0,0,1,null,5,"German",null,null,null,null,null,null,null,null,5]
[null,6,"Spanish","スペイン語",null,null,null,null,null,null,null,6,"オランダ語",3,null,null,1,"0001",0,0,0,1,null,6,"Spanish",null,null,null,null,null,null,null,null,6]
[null,7,"Chinese1","中国語","簡体字：Simplified characters",null,null,null,null,null,null,7,"デンマーク語",3,null,null,1,"0001",0,0,0,1,null,7,"Chinese1",null,null,null,null,null,null,null,null,7]
[null,8,"Chinese2(Taiwanese)","台湾語","繁体字：Shigetaige",null,null,null,null,null,null,8,"ノルウェー語",3,null,null,1,"0001",0,0,0,1,null,8,"Chinese2(Taiwanese)",null,null,null,null,null,null,null,null,8]
[null,9,"Korean","韓国語",null,null,null,null,null,null,null,9,"スウェーデン語",3,null,null,1,"0001",0,0,0,1,null,9,"Korean",null,null,null,null,null,null,null,null,9]
[null,10,"Dutch","オランダ語",null,null,null,null,null,null,null,10,"フィンランド語",3,null,null,1,"0001",0,0,0,1,null,10,"Dutch",null,null,null,null,null,null,null,null,10]
[null,11,"Danish","デンマーク語",null,null,null,null,null,null,null,11,"ポルトガル語",3,null,null,1,"0001",0,0,0,1,null,11,"Danish",null,null,null,null,null,null,null,null,11]
[null,12,"Norwegian","ノルウェー語",null,null,null,null,null,null,null,12,"トルコ語",3,null,null,1,"0001",0,0,0,1,null,12,"Norwegian",null,null,null,null,null,null,null,null,12]
[null,13,"Swedish","スウェーデン語",null,null,null,null,null,null,null,13,"ギリシャ語",3,null,null,1,"0001",0,0,0,1,null,13,"Swedish",null,null,null,null,null,null,null,null,13]
[null,14,"Finnish","フィンランド語",null,null,null,null,null,null,null,14,"チェコ語",3,null,null,1,"0001",0,0,0,1,null,14,"Finnish",null,null,null,null,null,null,null,null,14]
[null,15,"Portuguese","ポルトガル語",null,null,null,null,null,null,null,15,"ポーランド語",3,null,null,1,"0001",0,0,0,1,null,15,"Portuguese",null,null,null,null,null,null,null,null,15]
[null,16,"Turkish","トルコ語",null,null,null,null,null,null,null,16,"ハンガリー語",3,null,null,1,"0001",0,0,0,1,null,16,"Turkish",null,null,null,null,null,null,null,null,16]
[null,17,"Greek","ギリシャ語",null,null,null,null,null,null,null,17,"スロバキア語",3,null,null,1,"0001",0,0,0,1,null,17,"Greek",null,null,null,null,null,null,null,null,17]
[null,18,"Czech","チェコ語",null,null,null,null,null,null,null,18,"ロシア語",3,null,null,1,"0001",0,0,0,1,null,18,"Czech",null,null,null,null,null,null,null,null,18]
[null,19,"Polish","ポーランド語",null,null,null,null,null,null,null,19,"カタロニア語",4,null,null,1,"0001",0,0,0,1,null,19,"Polish",null,null,null,null,null,null,null,null,19]
[null,20,"Hungarian","ハンガリー語",null,null,null,null,null,null,null,20,"リトアニア語",4,null,null,1,"0001",0,0,0,1,null,20,"Hungarian",null,null,null,null,null,null,null,null,20]
[null,21,"Slovak","スロバキア語",null,null,null,null,null,null,null,21,"エストニア語",4,null,null,1,"0001",0,0,0,1,null,21,"Slovak",null,null,null,null,null,null,null,null,21]
[null,22,"Russian","ロシア語",null,null,null,null,null,null,null,22,"ラトビア語",4,null,null,1,"0001",0,0,0,1,null,22,"Russian",null,null,null,null,null,null,null,null,22]
[null,23,"Catalan","カタロニア語",null,null,null,null,null,null,null,23,"スロベニア語",4,null,null,1,"0001",0,0,0,1,null,23,"Catalan",null,null,null,null,null,null,null,null,23]
[null,24,"Lithuanian","リトアニア語",null,null,null,null,null,null,null,24,"ルーマニア語",4,null,null,1,"0001",0,0,0,1,null,24,"Lithuanian",null,null,null,null,null,null,null,null,24]
[null,25,"Estonian","エストニア語",null,null,null,null,null,null,null,25,"ウクライナ語",4,null,null,1,"0001",0,0,0,1,null,25,"Estonian",null,null,null,null,null,null,null,null,25]
[null,26,"Latvian","ラトビア語",null,null,null,null,null,null,null,26,"ブルガリア語",5,null,null,1,"0001",0,0,0,1,null,26,"Latvian",null,null,null,null,null,null,null,null,26]
[null,27,"Slovenia","スロベニア語",null,null,null,null,null,null,null,27,"クロアチア語",5,null,null,1,"0001",0,0,0,1,null,27,"Slovenia",null,null,null,null,null,null,null,null,27]
[null,28,"Romanian","ルーマニア語",null,null,null,null,null,null,null,null,null,null,null,null,1,"0001",0,0,0,1,null,28,"Romanian"]
[null,29,"Ukrainian","ウクライナ語",null,null,null,null,null,null,null,null,null,null,null,null,1,"0001",0,0,0,1,null,29,"Ukrainian"]
[null,30,"Bulgarian","ブルガリア語",null,null,null,null,null,null,null,null,null,null,null,null,1,"0001",0,0,0,1,null,30,"Bulgarian"]
[null,31,"Croatian","クロアチア語",null,null,null,null,null,null,null,null,null,null,null,null,1,"0001",0,0,0,1,null,31,"Croatian"]
[null,null,null,null,null,null,null,null,null,null,null,null,null,null,null,null,null,"","","","",""]
[null,null,"08/07/26　初版　伊藤（代理修正：米澤）",null,null,null,null,null,null,null,null,null,null,null,null,null,1,"0001",0,0,0,1]
[null,null,"Amur対応。(UV-00583) サーチャブルPDF生成機能",null,null,null,null,null,null,null,null,null,null,null,null,null,1,"0001",0,0,0,1]
[null,null,null,null,null,null,null,null,null,null,null,null,null,null,null,"e","e","e","e","e","e","e"]
[]
[]
[]
[]
[]
[]
[]
[]
[]
[]
[]
[]
[]
[]
[]
[]
[]
[]
[]
[]
[]
[]
[]
[]
[]
[]
[]
[]
[]
[]
[]
[]
[]
[]
[]
[]
[]
[]
[]
[]
[]
[]
[]
[]
[]
[]
[]
[]
[]
[]
[]
[]
[]
[]
[]
[]
[]
[]
[]
[]
[]
[]
[]
[]
[]
[]
[]
[]
[]
[]
[]
[]
[]
[]
[]
[]
[]
[]
[]
[]
[]
[]
[]
[]
[]
[]
[]
[]
[]
[]
[]
[]
[]
[]
[]
[]
[]
[]
[]
[]
[]
[]
[]
[]
[]
[]
[]
[]
[]
[]
[]
[]
[]
[]
[]
[]
[]
[]
[]
[]
[]
[]
[]
[]
[]
[]
[]
[]
[]
[]
[]
[]
[]
[]
[]
[]
[]
[]
[]
[]
[]
[]
[]
[]
[]
[]
[]
[]
[]
[]
[]
[]
[]
[]
[]
[]
[]
[]
[]
[]
[]
[]
[]
[]
[]
[]
[]
[]
[]
[]
[]
[]
[]
[]
[]
[]
[]
[]
[]
[]
[]
[]
[]
[]
[]
[]
[]
[]
[]
[]
[]
[]
[]
[]
[]
[]
[]
[]
[]
[]
[]
[]
[]
[]
[]
[]
[]
[]
[]
[]
[]
[]
[]
[]
[]
[]
[]
[]
[]
[]
[]
[]
[]
[]
[]
[]
[]
[]
[]
[]
[]
[]
[]
[]
[]
[]
[]
[]
[]
[]
[]
[]
[]
[]
[]
[]
[]
[]
[]
[]
[]
[]
[]
[]
[]
[]
[]
[]
[]
[]
[]
[]
[]
[]
[]
[]
[]
[]
[]
[]
[]
[]
[]
[]
[]
[]
[]
[]
[]
[]
[]
[]
[]
[]
[]
[]
[]
[]
[]
[]
[]
[]
[]
[]
[]
[]
[]
[]
[]
[]
[]
[]
[]
[]
[]
[]
[]
[]
[]
[]
[]
[]
[]
[]
[]
[]
[]
[]
[]
[]
[]
[]
[]
[]
[]
[]
[]
[]
[]
[]
[]
[]
[]
[]
[]
[]
[]
[]
[]
[]
[]
[]
[]
[]
[]
[]
[]
[]
[]
[]
[]
[]
[]
[]
[]
[]
[]
[]
[]
[]
[]
[]
[]
[]
[]
[]
[]
[]
[]
[]
[]
[]
[]
[]
[]
[]
[]
[]
[]
[]
[]
[]
[]
[]
[]
[]
[]
[]
[]
[]
[]
[]
[]
[]
[]
[]
[]
[]
[]
[]
[]
[]
[]
[]
[]
[]
[]
[]
[]
[]
[]
[]
[]
[]
[]
[]
[]
[]
[]
[]
[]
[]
[]
[]
[]
[]
[]
[]
[]
[]
[]
[]
[]
[]
[]
[]
[]
[]
[]
[]
[]
[]
[]
[]
[]
[]
[]
[]
[]
[]
[]
[]
[]
[]
[]
[]
[]
[]
[]
[]
[]
[]
[]
[]
[]
[]
[]
[]
[]
[]
[]
[]
[]
[]
[]
[]
[]
[]
[]
[]
[]
[]
[]
[]
[]
[]
[]
[]
[]
[]
[]
[]
[]
[]
[]
[]
[]
[]
[]
[]
[]
[]
[]
[]
[]
[]
[]
[]
[]
[]
[]
[]
[]
[]
[]
[]
[]
[]
[]
[]
[]
[]
[]
[]
[]
[]
[]
[]
[]
[]
[]
[]
[]
[]
[]
[]
[]
[]
[]
[]
[]
[]
[]
[]
[]
[]
[]
[]
[]
[]
[]
[]
[]
[]
[]
[]
[]
[]
[]
[]
[]
[]
[]
[]
[]
[]
[]
[]
[]
[]
[]
[]
[]
[]
[]
[]
[]
[]
[]
[]
[]
[]
[]
[]
[]
[]
[]
[]
[]
[]
[]
[]
[]
[]
[]
[]
[]
[]
[]
[]
[]
[]
[]
[]
[]
[]
[]
[]
[]
[]
[]
[]
[]
[]
[]
[]
[]
[]
[]
[]
[]
[]
[]
[]
[]
[]
[]
[]
[]
[]
[]
[]
[]
[]
[]
[]
[]
[]
[]
[]
[]
[]
[]
[]
[]
[]
[]
[]
[]
[]
[]
[]
[]
[]
[]
[]
[]
[]
[]
[]
[]
[]
[]
[]
[]
[]
[]
[]
[]
[]
[]
[]
[]
[]
[]
[]
[]
[]
[]
[]
[]
[]
[]
[]
[]
[]
[]
[]
[]
[]
[]
[]
[]
[]
[]
[]
[]
[]
[]
[]
[]
[]
[]
[]
[]
[]
[]
[]
[]
[]
[]
[]
[]
[]
[]
[]
[]
[]
[]
[]
[]
[]
[]
[]
[]
[]
[]
[]
[]
[]
[]
[]
[]
[]
[]
[]
[]
[]
[]
[]
[]
[]
[]
[]
[]
[]
[]
[]
[]
[]
[]
[]
[]
[]
[]
[]
[]
[]
[]
[]
[]
[]
[]
[]
[]
[]
[]
[]
[]
[]
[]
[]
[]
[]
[]
[]
[]
[]
[]
[]
[]
[]
[]
[]
[]
[]
[]
[]
[]
[]
[]
[]
[]
[]
[]
[]
[]
[]
[]
[]
[]
[]
[]
[]
[]
[]
[]
[]
[]
[]
[]
[]
[]
[]
[]
[]
[]
[]
[]
[]
[]
[]
[]
[]
[]
[]
[]
[]
[]
[]
[]
[]
[]
[]
[]
[]
[]
[]
[]
[]
[]
[]
[]
[]
[]
[]
[]
[]
[]
[]
[]
[]
[]
[]
[]
[]
[]
[]
[]
[]
[]
[]
[]
[]
[]
[]
[]
[]
[]
[]
[]
[]
[]
[]
[]
[]
[]
[]
[]
[]
[]
[]
[]
[]
[]
[]
[]
[]
[]
[]
[]
[]
[]
[]
[]
[]
[]
[]
[]
[]
[]
[]
[]
[]
[]
[]
[]
[]
[]
[]
[]
[]
[]
[]
[]
[]
[]
[]
[]
[]
[]
[]
[]
[]
[]
[]
[]
[]
[]
[]
[]
[]
[]
[]
[]
[]
[]
[]
[]
[]
[]
[]
[]
[]
[]
[]
[]
[]
[]
[]
[]
[]
[]
[]
[]
[]
[]
[]
[]
[]
[]
[null,null,null,null,null,null,null,null,null,null,null,null,null,null,null,0]
[null,null,null,null,null,null,null,null,null,null,null,null,null,null,null,0]
[null,null,null,null,null,null,null,null,null,null,null,null,null,null,null,0]
[null,null,null,null,null,null,null,null,null,null,null,null,null,null,null,0]
[null,null,null,null,null,null,null,null,null,null,null,null,null,null,null,0]
[null,null,null,null,null,null,null,null,null,null,null,null,null,null,null,0]
[null,null,null,null,null,null,null,null,null,null,null,null,null,null,null,0]
[null,null,null,null,null,null,null,null,null,null,null,null,null,null,null,0]
[null,null,null,null,null,null,null,null,null,null,null,null,null,null,null,0]
[null,null,null,null,null,null,null,null,null,null,null,null,null,null,null,1]
[null,null,null,null,null,null,null,null,null,null,null,null,null,null,null,0]
[null,null,null,null,null,null,null,null,null,null,null,null,null,null,null,0]
[null,null,null,null,null,null,null,null,null,null,null,null,null,null,null,0]
[null,null,null,null,null,null,null,null,null,null,null,null,null,null,null,1]
[null,null,null,null,null,null,null,null,null,null,null,null,null,null,null,0]

{"sheet":"（参考）禁則表1(PSP記載読込設定同士の組禁)","index":3,"n_rows":1034,"n_cols":71,"rows_kept":1034,"cut":false,"hidden":false,"merged":[[12,1,24,1],[25,1,37,1],[9,17,9,29],[9,4,9,16],[32,2,37,2],[10,17,10,19],[10,20,10,23],[10,24,10,29],[10,7,10,10],[10,11,10,16],[10,4,10,6],[25,2,27,2],[28,2,31,2],[12,2,14,2],[15,2,18,2],[19,2,24,2],[9,45,9,57],[9,58,9,70],[10,45,10,47],[10,48,10,51],[10,52,10,57],[10,58,10,60],[10,61,10,64],[10,65,10,70],[12,42,24,42],[12,43,14,43],[15,43,18,43],[19,43,24,43],[25,42,37,42],[25,43,27,43],[28,43,31,43],[32,43,37,43]]}
[null,null,null,null,null,null,null,null,null,null,null,null,null,null,null,null,null,null,null,null,null,null,null,null,null,null,null,null,null,null,null,null,null,null,"SP","F","BIN",4,3,2,1]
[null,"★Distributed　Scan対応当時の検討資料",null,null,null,null,null,null,null,null,null,null,null,null,null,null,null,null,null,null,null,null,null,null,null,null,null,null,null,null,null,null,null,null,null,1,{"$f":"IF(AJ2=\"\",\"\",DEC2BIN(AJ2,4))","v":"0001"},{"$f":"IF($AK2=\"\",\"\",VALUE(MID($AK2,1,1)))","v":0},{"$f":"IF($AK2=\"\",\"\",VALUE(MID($AK2,2,1)))","v":0},{"$f":"IF($AK2=\"\",\"\",VALUE(MID($AK2,3,1)))","v":0},{"$f":"IF($AK2=\"\",\"\",VALUE(MID($AK2,4,1)))","v":1}]
[null,null,null,null,null,null,null,null,null,null,null,null,null,null,null,null,null,null,null,null,null,null,null,null,null,null,null,null,null,null,null,null,null,null,null,null,{"$f":"IF(AJ3=\"\",\"\",DEC2BIN(AJ3,4))","v":""},{"$f":"IF($AK3=\"\",\"\",VALUE(MID($AK3,1,1)))","v":""},{"$f":"IF($AK3=\"\",\"\",VALUE(MID($AK3,2,1)))","v":""},{"$f":"IF($AK3=\"\",\"\",VALUE(MID($AK3,3,1)))","v":""},{"$f":"IF($AK3=\"\",\"\",VALUE(MID($AK3,4,1)))","v":""}]
[null,"PSP設定値同士の組禁",null,null,null,null,null,null,null,null,null,null,null,null,null,null,null,null,null,null,null,null,null,null,null,null,null,null,null,null,null,null,null,null,null,1,"0001",0,0,0,1]
[null,null,"PSP記載パラメータ同士の組み合わせ禁止表を以下にします。",null,null,null,null,null,null,null,null,null,null,null,null,null,null,null,null,null,null,null,null,null,null,null,null,null,null,null,null,null,null,null,null,1,"0001",0,0,0,1]
[null,null,"PSP設定値をパネル設定に反映する際の組禁表です。(*2)",null,null,null,null,null,null,null,null,null,null,null,null,null,null,null,null,null,null,null,null,null,null,null,null,null,null,null,null,null,null,null,null,1,"0001",0,0,0,1]
[null,null,"PSP設定値同士の組禁パターンを記載しています。",null,null,null,null,null,null,null,null,null,null,null,null,null,null,null,null,null,null,null,null,null,null,null,null,null,null,null,null,null,null,null,null,1,"0001",0,0,0,1]
[null,null,null,null,null,null,null,null,null,null,null,null,null,null,null,null,null,null,null,null,null,null,null,null,null,null,null,null,null,null,null,null,null,null,null,null,"","","","",""]
[null,null,null,null,null,null,null,null,null,null,null,null,null,null,null,null,null,null,null,null,null,null,null,null,null,null,null,null,null,null,null,null,null,null,null,null,"","","","",""]
[null,null,null,null,"上書き禁止",null,null,null,null,null,null,null,null,null,null,null,null,"上書き許可",null,null,null,null,null,null,null,null,null,null,null,null,null,null,null,null,null,1,"0001",0,0,0,1]
[null,null,null,null,"カラーモード",null,null,"解像度",null,null,null,"画像フォーマット",null,null,null,null,null,"カラーモード",null,null,"解像度",null,null,null,"画像フォーマット",null,null,null,null,null,null,null,null,null,null,1,"0001",0,0,0,1]
[null,null,null,null,{"$f":"D13","v":"フルカラー"},{"$f":"D14","v":"グレースケール"},null,"２００ｄｐｉ（精細）","３００ｄｐｉ","４００ｄｐｉ（高精細）","６００ｄｐｉ（超高精細）","ＪＰＥＧ","ＴＩＦＦ","ＰＤＦ","コンパクトＰＤＦ","XPS","コンパクトXPS","フルカラー","グレースケール","白黒2値","２００ｄｐｉ（精細）","３００ｄｐｉ","４００ｄｐｉ（高精細）","６００ｄｐｉ（超高精細）","ＪＰＥＧ","ＴＩＦＦ","ＰＤＦ","コンパクトＰＤＦ","XPS","コンパクトXPS",null,null,null,null,null,1,"0001",0,0,0,1]
[null,"上書き禁止","カラーモード","フルカラー",null,null,null,"○","○","○","○","○","○","○","○","○","○",null,null,null,"○","○","○","○","○","○","○","○","○","○",null,null,null,null,null,1,"0001",0,0,0,1,null,null,null,null,null,null,null,"○","○","○","○","○","○","○","○","○","○",null,null,null,"○","○","○","○","○","○","○","○","○","○"]
[null,null,null,"グレースケール",null,null,null,"○","○","○","○","○","○","○","*22","○","○",null,null,null,"○","○","○","○","○","○","○","*22","○","○",null,null,null,null,null,1,"0001",0,0,0,1,null,null,null,null,null,null,null,"○","○","○","○","○","○","○","*22","○","○",null,null,null,"○","○","○","○","○","○","○","*22","○","○"]
[null,null,null,"白黒2値",null,null,null,null,"○","○","○","×","○","○","×②(*1)","○","×③(*1)",null,null,null,"○","○","○","○","①","○","○","②","○","③",null,null,null,null,null,1,"0001",0,0,0,1,null,null,null,null,null,null,null,null,"○","○","○","×","○","○","×②(*1)","○","×③(*1)",null,null,null,"○","○","○","○","①","○","○","②","○","③"]
[null,null,"解像度","２００ｄｐｉ（精細）",null,null,null,null,null,null,null,"○","○","○","○","○","○","○","○","○",null,null,null,null,"○","○","○","○","○","○",null,null,null,null,null,1,"0001",0,0,0,1,null,null,null,null,null,null,null,null,null,null,null,"○","○","○","○","○","○","○","○","○",null,null,null,null,"○","○","○","○","○","○"]
[null,null,null,"３００ｄｐｉ",null,null,null,null,null,null,null,"○","○","○","○","○","○","○","○","○",null,null,null,null,"○","○","○","○","○","○",null,null,null,null,null,1,"0001",0,0,0,1,null,null,null,null,null,null,null,null,null,null,null,"○","○","○","○","○","○","○","○","○",null,null,null,null,"○","○","○","○","○","○"]
[null,null,null,"４００ｄｐｉ（高精細）",null,null,null,null,null,null,null,"○","○","○","○","○","○","○","○","○",null,null,null,null,"○","○","○","○","○","○",null,null,null,null,null,1,"0001",0,0,0,1,null,null,null,null,null,null,null,null,null,null,null,"○","○","○","○","○","○","○","○","○",null,null,null,null,"○","○","○","○","○","○"]
[null,null,null,"６００ｄｐｉ（超高精細）",null,null,null,null,null,null,null,"○","○","○","○","○","○","○","○","○",null,null,null,null,"○","○","○","○","○","○",null,null,null,null,null,1,"0001",0,0,0,1,null,null,null,null,null,null,null,null,null,null,null,"○","○","○","○","○","○","○","○","○",null,null,null,null,"○","○","○","○","○","○"]
[null,null,"画像フォーマット","ＪＰＥＧ",null,null,null,null,null,null,null,null,null,null,null,null,null,"○","○","④","○","○","○","○",null,null,null,null,null,null,null,null,null,null,null,1,"0001",0,0,0,1,null,null,null,null,null,null,null,null,null,null,null,null,null,null,null,null,null,"○","○","④","○","○","○","○"]
[null,null,null,"ＴＩＦＦ",null,null,null,null,null,null,null,null,null,null,null,null,null,"○","○","○","○","○","○","○",null,null,null,null,null,null,null,null,null,null,null,1,"0001",0,0,0,1,null,null,null,null,null,null,null,null,null,null,null,null,null,null,null,null,null,"○","○","○","○","○","○","○"]
[null,null,null,"ＰＤＦ",null,null,null,null,null,null,null,null,null,null,null,null,null,"○","○","○","○","○","○","○",null,null,null,null,null,null,null,null,null,null,null,1,"0001",0,0,0,1,null,null,null,null,null,null,null,null,null,null,null,null,null,null,null,null,null,"○","○","○","○","○","○","○"]
[null,null,null,"コンパクトＰＤＦ",null,null,null,null,null,null,null,null,null,null,null,null,null,"○","*22","④*","○","○","○","○",null,null,null,null,null,null,null,null,null,null,null,1,"0001",0,0,0,1,null,null,null,null,null,null,null,null,null,null,null,null,null,null,null,null,null,"○","*22","④*","○","○","○","○"]
[null,null,null,"XPS",null,null,null,null,null,null,null,null,null,null,null,null,null,"○","○","○","○","○","○","○",null,null,null,null,null,null,null,null,null,null,null,1,"0001",0,0,0,1,null,null,null,null,null,null,null,null,null,null,null,null,null,null,null,null,null,"○","○","○","○","○","○","○"]
[null,null,null,"コンパクトXPS",null,null,null,null,null,null,null,null,null,null,null,null,null,"○","○","④*","○","○","○","○",null,null,null,null,null,null,null,null,null,null,null,1,"0001",0,0,0,1,null,null,null,null,null,null,null,null,null,null,null,null,null,null,null,null,null,"○","○","④*","○","○","○","○"]
[null,"上書き許可","カラーモード","フルカラー",null,null,null,null,null,null,null,null,null,null,null,null,null,null,null,null,"○","○","○","○","○","○","○","○","○","○",null,null,null,null,null,1,"0001",0,0,0,1,null,null,null,null,null,null,null,null,null,null,null,null,null,null,null,null,null,null,null,null,"○","○","○","○","○","○","○","○","○","○"]
[null,null,null,"グレースケール",null,null,null,null,null,null,null,null,null,null,null,null,null,null,null,null,"○","○","○","○","○","○","○","*22","○","○",null,null,null,null,null,1,"0001",0,0,0,1,null,null,null,null,null,null,null,null,null,null,null,null,null,null,null,null,null,null,null,null,"○","○","○","○","○","○","○","*22","○","○"]
[null,null,null,"白黒2値",null,null,null,null,null,null,null,null,null,null,null,null,null,null,null,null,"○","○","○","○","④","○","○","④*","○","④*",null,null,null,null,null,1,"0001",0,0,0,1,null,null,null,null,null,null,null,null,null,null,null,null,null,null,null,null,null,null,null,null,"○","○","○","○","④","○","○","④*","○","④*"]
[null,null,"解像度","２００ｄｐｉ（精細）",null,null,null,null,null,null,null,null,null,null,null,null,null,null,null,null,null,null,null,null,"○","○","○","○","○","○",null,null,null,null,null,1,"0001",0,0,0,1,null,null,null,null,null,null,null,null,null,null,null,null,null,null,null,null,null,null,null,null,null,null,null,null,"○","○","○","○","○","○"]
[null,null,null,"３００ｄｐｉ",null,null,null,null,null,null,null,null,null,null,null,null,null,null,null,null,null,null,null,null,"○","○","○","○","○","○",null,null,null,null,null,1,"0001",0,0,0,1,null,null,null,null,null,null,null,null,null,null,null,null,null,null,null,null,null,null,null,null,null,null,null,null,"○","○","○","○","○","○"]
[null,null,null,"４００ｄｐｉ（高精細）",null,null,null,null,null,null,null,null,null,null,null,null,null,null,null,null,null,null,null,null,"○","○","○","○","○","○",null,null,null,null,null,1,"0001",0,0,0,1,null,null,null,null,null,null,null,null,null,null,null,null,null,null,null,null,null,null,null,null,null,null,null,null,"○","○","○","○","○","○"]
[null,null,null,"６００ｄｐｉ（超高精細）",null,null,null,null,null,null,null,null,null,null,null,null,null,null,null,null,null,null,null,null,"○","○","○","○","○","○",null,null,null,null,null,1,"0001",0,0,0,1,null,null,null,null,null,null,null,null,null,null,null,null,null,null,null,null,null,null,null,null,null,null,null,null,"○","○","○","○","○","○"]
[null,null,"画像フォーマット","ＪＰＥＧ",null,null,null,null,null,null,null,null,null,null,null,null,null,null,null,null,null,null,null,null,null,null,null,null,null,null,null,null,null,null,null,1,"0001",0,0,0,1]
[null,null,null,"ＴＩＦＦ",null,null,null,null,null,null,null,null,null,null,null,null,null,null,null,null,null,null,null,null,null,null,null,null,null,null,null,null,null,null,null,1,"0001",0,0,0,1]
[null,null,null,"ＰＤＦ",null,null,null,null,null,null,null,null,null,null,null,null,null,null,null,null,null,null,null,null,null,null,null,null,null,null,null,null,null,null,null,1,"0001",0,0,0,1]
[null,null,null,"コンパクトＰＤＦ",null,null,null,null,null,null,null,null,null,null,null,null,null,null,null,null,null,null,null,null,null,null,null,null,null,null,null,null,null,null,null,1,"0001",0,0,0,1]
[null,null,null,"XPS",null,null,null,null,null,null,null,null,null,null,null,null,null,null,null,null,null,null,null,null,null,null,null,null,null,null,null,null,null,null,null,1,"0001",0,0,0,1]
[null,null,null,"コンパクトXPS",null,null,null,null,null,null,null,null,null,null,null,null,null,null,null,null,null,null,null,null,null,null,null,null,null,null,null,null,null,null,null,1,"0001",0,0,0,1]
[null,null,null,null,null,null,null,null,null,null,null,null,null,null,null,null,null,null,null,null,null,null,null,null,null,null,null,null,null,null,null,null,null,null,null,null,"","","","",""]
[null,null,null,"【履　　歴】","2009/1/29　新規作成　姉崎",null,null,null,null,null,null,null,null,null,null,null,null,null,null,null,null,null,null,null,null,null,null,null,null,null,null,null,null,null,null,1,"0001",0,0,0,1]
[null,null,null,null,"2009/6/4　第2版　姉崎(*1)",null,null,null,null,null,null,null,null,null,null,null,null,null,null,null,null,null,null,null,null,null,null,null,null,null,null,null,null,null,null,1,"0001",0,0,0,1]
[null,null,null,null,null,"コンパクトPDF（XPS）、白黒2値で、フォーマット、カラーモード共に上書き禁止",null,null,null,null,null,null,null,null,null,null,null,null,null,null,null,null,null,null,null,null,null,null,null,null,null,null,null,null,null,1,"0001",0,0,0,1]
[null,null,null,null,null,"の場合の対応を×→②（XPSの場合は③）に修正",null,null,null,null,null,null,null,null,null,null,null,null,null,null,null,null,null,null,null,null,null,null,null,null,null,null,null,null,null,1,"0001",0,0,0,1]
[null,null,null,null,"2009/6/4  第2版　姉崎",null,null,null,null,null,null,null,null,null,null,null,null,null,null,null,null,null,null,null,null,null,null,null,null,null,null,null,null,null,null,1,"0001",0,0,0,1]
[null,null,null,null,null,"説明が分かりにくかったので修正(*2)",null,null,null,null,null,null,null,null,null,null,null,null,null,null,null,null,null,null,null,null,null,null,null,null,null,null,null,null,null,1,"0001",0,0,0,1]
[null,null,null,null,"2009/6/4  第2版　姉崎",null,null,null,null,null,null,null,null,null,null,null,null,null,null,null,null,null,null,null,null,null,null,null,null,null,null,null,null,null,null,1,"0001",0,0,0,1]
[null,null,null,null,null,"コンパクトPDF、コンパクトXPSについての説明を追記(*3)",null,null,null,null,null,null,null,null,null,null,null,null,null,null,null,null,null,null,null,null,null,null,null,null,null,null,null,null,null,1,"0001",0,0,0,1]
[null,null,null,null,"2011/6/20　統合仕様書に掲載",null,null,null,null,null,null,null,null,null,null,null,null,null,null,null,null,null,null,null,null,null,null,null,null,null,null,null,null,null,null,1,"0001",0,0,0,1]
[null,null,null,null,null,null,null,null,null,null,null,null,null,null,null,null,null,null,null,null,null,null,null,null,null,null,null,null,null,null,null,null,null,null,"e","e","e","e","e","e","e"]
[]
[]
[]
[]
[]
[]
[]
[]
[]
[]
[]
[]
[]
[]
[]
[]
[]
[]
[]
[]
[]
[]
[]
[]
[]
[]
[]
[]
[]
[]
[]
[]
[]
[]
[]
[]
[]
[]
[]
[]
[]
[]
[]
[]
[]
[]
[]
[]
[]
[]
[]
[]
[]
[]
[]
[]
[]
[]
[]
[]
[]
[]
[]
[]
[]
[]
[]
[]
[]
[]
[]
[]
[]
[]
[]
[]
[]
[]
[]
[]
[]
[]
[]
[]
[]
[]
[]
[]
[]
[]
[]
[]
[]
[]
[]
[]
[]
[]
[]
[]
[]
[]
[]
[]
[]
[]
[]
[]
[]
[]
[]
[]
[]
[]
[]
[]
[]
[]
[]
[]
[]
[]
[]
[]
[]
[]
[]
[]
[]
[]
[]
[]
[]
[]
[]
[]
[]
[]
[]
[]
[]
[]
[]
[]
[]
[]
[]
[]
[]
[]
[]
[]
[]
[]
[]
[]
[]
[]
[]
[]
[]
[]
[]
[]
[]
[]
[]
[]
[]
[]
[]
[]
[]
[]
[]
[]
[]
[]
[]
[]
[]
[]
[]
[]
[]
[]
[]
[]
[]
[]
[]
[]
[]
[]
[]
[]
[]
[]
[]
[]
[]
[]
[]
[]
[]
[]
[]
[]
[]
[]
[]
[]
[]
[]
[]
[]
[]
[]
[]
[]
[]
[]
[]
[]
[]
[]
[]
[]
[]
[]
[]
[]
[]
[]
[]
[]
[]
[]
[]
[]
[]
[]
[]
[]
[]
[]
[]
[]
[]
[]
[]
[]
[]
[]
[]
[]
[]
[]
[]
[]
[]
[]
[]
[]
[]
[]
[]
[]
[]
[]
[]
[]
[]
[]
[]
[]
[]
[]
[]
[]
[]
[]
[]
[]
[]
[]
[]
[]
[]
[]
[]
[]
[]
[]
[]
[]
[]
[]
[]
[]
[]
[]
[]
[]
[]
[]
[]
[]
[]
[]
[]
[]
[]
[]
[]
[]
[]
[]
[]
[]
[]
[]
[]
[]
[]
[]
[]
[]
[]
[]
[]
[]
[]
[]
[]
[]
[]
[]
[]
[]
[]
[]
[]
[]
[]
[]
[]
[]
[]
[]
[]
[]
[]
[]
[]
[]
[]
[]
[]
[]
[]
[]
[]
[]
[]
[]
[]
[]
[]
[]
[]
[]
[]
[]
[]
[]
[]
[]
[]
[]
[]
[]
[]
[]
[]
[]
[]
[]
[]
[]
[]
[]
[]
[]
[]
[]
[]
[]
[]
[]
[]
[]
[]
[]
[]
[]
[]
[]
[]
[]
[]
[]
[]
[]
[]
[]
[]
[]
[]
[]
[]
[]
[]
[]
[]
[]
[]
[]
[]
[]
[]
[]
[]
[]
[]
[]
[]
[]
[]
[]
[]
[]
[]
[]
[]
[]
[]
[]
[]
[]
[]
[]
[]
[]
[]
[]
[]
[]
[]
[]
[]
[]
[]
[]
[]
[]
[]
[]
[]
[]
[]
[]
[]
[]
[]
[]
[]
[]
[]
[]
[]
[]
[]
[]
[]
[]
[]
[]
[]
[]
[]
[]
[]
[]
[]
[]
[]
[]
[]
[]
[]
[]
[]
[]
[]
[]
[]
[]
[]
[]
[]
[]
[]
[]
[]
[]
[]
[]
[]
[]
[]
[]
[]
[]
[]
[]
[]
[]
[]
[]
[]
[]
[]
[]
[]
[]
[]
[]
[]
[]
[]
[]
[]
[]
[]
[]
[]
[]
[]
[]
[]
[]
[]
[]
[]
[]
[]
[]
[]
[]
[]
[]
[]
[]
[]
[]
[]
[]
[]
[]
[]
[]
[]
[]
[]
[]
[]
[]
[]
[]
[]
[]
[]
[]
[]
[]
[]
[]
[]
[]
[]
[]
[]
[]
[]
[]
[]
[]
[]
[]
[]
[]
[]
[]
[]
[]
[]
[]
[]
[]
[]
[]
[]
[]
[]
[]
[]
[]
[]
[]
[]
[]
[]
[]
[]
[]
[]
[]
[]
[]
[]
[]
[]
[]
[]
[]
[]
[]
[]
[]
[]
[]
[]
[]
[]
[]
[]
[]
[]
[]
[]
[]
[]
[]
[]
[]
[]
[]
[]
[]
[]
[]
[]
[]
[]
[]
[]
[]
[]
[]
[]
[]
[]
[]
[]
[]
[]
[]
[]
[]
[]
[]
[]
[]
[]
[]
[]
[]
[]
[]
[]
[]
[]
[]
[]
[]
[]
[]
[]
[]
[]
[]
[]
[]
[]
[]
[]
[]
[]
[]
[]
[]
[]
[]
[]
[]
[]
[]
[]
[]
[]
[]
[]
[]
[]
[]
[]
[]
[]
[]
[]
[]
[]
[]
[]
[]
[]
[]
[]
[]
[]
[]
[]
[]
[]
[]
[]
[]
[]
[]
[]
[]
[]
[]
[]
[]
[]
[]
[]
[]
[]
[]
[]
[]
[]
[]
[]
[]
[]
[]
[]
[]
[]
[]
[]
[]
[]
[]
[]
[]
[]
[]
[]
[]
[]
[]
[]
[]
[]
[]
[]
[]
[]
[]
[]
[]
[]
[]
[]
[]
[]
[]
[]
[]
[]
[]
[]
[]
[]
[]
[]
[]
[]
[]
[]
[]
[]
[]
[]
[]
[]
[]
[]
[]
[]
[]
[]
[]
[]
[]
[]
[]
[]
[]
[]
[]
[]
[]
[]
[]
[]
[]
[]
[]
[]
[]
[]
[]
[]
[]
[]
[]
[]
[]
[]
[]
[]
[]
[]
[]
[]
[]
[]
[]
[]
[]
[]
[]
[]
[]
[]
[]
[]
[]
[]
[]
[]
[]
[]
[]
[]
[]
[]
[]
[]
[]
[]
[]
[]
[]
[]
[]
[]
[]
[]
[]
[]
[]
[]
[]
[]
[]
[]
[]
[]
[]
[]
[]
[]
[]
[]
[]
[]
[]
[]
[]
[]
[]
[]
[]
[]
[]
[]
[]
[]
[]
[]
[]
[]
[]
[]
[]
[]
[]
[]
[]
[]
[]
[]
[]
[]
[]
[]
[]
[]
[]
[]
[]
[]
[]
[]
[null,null,null,null,null,null,null,null,null,null,null,null,null,null,null,null,null,null,null,null,null,null,null,null,null,null,null,null,null,null,null,null,null,null,0]
[null,null,null,null,null,null,null,null,null,null,null,null,null,null,null,null,null,null,null,null,null,null,null,null,null,null,null,null,null,null,null,null,null,null,0]
[null,null,null,null,null,null,null,null,null,null,null,null,null,null,null,null,null,null,null,null,null,null,null,null,null,null,null,null,null,null,null,null,null,null,0]
[null,null,null,null,null,null,null,null,null,null,null,null,null,null,null,null,null,null,null,null,null,null,null,null,null,null,null,null,null,null,null,null,null,null,0]
[null,null,null,null,null,null,null,null,null,null,null,null,null,null,null,null,null,null,null,null,null,null,null,null,null,null,null,null,null,null,null,null,null,null,0]
[null,null,null,null,null,null,null,null,null,null,null,null,null,null,null,null,null,null,null,null,null,null,null,null,null,null,null,null,null,null,null,null,null,null,0]
[null,null,null,null,null,null,null,null,null,null,null,null,null,null,null,null,null,null,null,null,null,null,null,null,null,null,null,null,null,null,null,null,null,null,0]
[null,null,null,null,null,null,null,null,null,null,null,null,null,null,null,null,null,null,null,null,null,null,null,null,null,null,null,null,null,null,null,null,null,null,0]
[null,null,null,null,null,null,null,null,null,null,null,null,null,null,null,null,null,null,null,null,null,null,null,null,null,null,null,null,null,null,null,null,null,null,0]
[null,null,null,null,null,null,null,null,null,null,null,null,null,null,null,null,null,null,null,null,null,null,null,null,null,null,null,null,null,null,null,null,null,null,0]
[null,null,null,null,null,null,null,null,null,null,null,null,null,null,null,null,null,null,null,null,null,null,null,null,null,null,null,null,null,null,null,null,null,null,0]
[null,null,null,null,null,null,null,null,null,null,null,null,null,null,null,null,null,null,null,null,null,null,null,null,null,null,null,null,null,null,null,null,null,null,0]
[null,null,null,null,null,null,null,null,null,null,null,null,null,null,null,null,null,null,null,null,null,null,null,null,null,null,null,null,null,null,null,null,null,null,0]
[null,null,null,null,null,null,null,null,null,null,null,null,null,null,null,null,null,null,null,null,null,null,null,null,null,null,null,null,null,null,null,null,null,null,0]
[null,null,null,null,null,null,null,null,null,null,null,null,null,null,null,null,null,null,null,null,null,null,null,null,null,null,null,null,null,null,null,null,null,null,0]
[null,null,null,null,null,null,null,null,null,null,null,null,null,null,null,null,null,null,null,null,null,null,null,null,null,null,null,null,null,null,null,null,null,null,0]
[null,null,null,null,null,null,null,null,null,null,null,null,null,null,null,null,null,null,null,null,null,null,null,null,null,null,null,null,null,null,null,null,null,null,0]
[null,null,null,null,null,null,null,null,null,null,null,null,null,null,null,null,null,null,null,null,null,null,null,null,null,null,null,null,null,null,null,null,null,null,0]
[null,null,null,null,null,null,null,null,null,null,null,null,null,null,null,null,null,null,null,null,null,null,null,null,null,null,null,null,null,null,null,null,null,null,0]
[null,null,null,null,null,null,null,null,null,null,null,null,null,null,null,null,null,null,null,null,null,null,null,null,null,null,null,null,null,null,null,null,null,null,0]
[null,null,null,null,null,null,null,null,null,null,null,null,null,null,null,null,null,null,null,null,null,null,null,null,null,null,null,null,null,null,null,null,null,null,0]
[null,null,null,null,null,null,null,null,null,null,null,null,null,null,null,null,null,null,null,null,null,null,null,null,null,null,null,null,null,null,null,null,null,null,0]
[null,null,null,null,null,null,null,null,null,null,null,null,null,null,null,null,null,null,null,null,null,null,null,null,null,null,null,null,null,null,null,null,null,null,0]
[null,null,null,null,null,null,null,null,null,null,null,null,null,null,null,null,null,null,null,null,null,null,null,null,null,null,null,null,null,null,null,null,null,null,0]
[null,null,null,null,null,null,null,null,null,null,null,null,null,null,null,null,null,null,null,null,null,null,null,null,null,null,null,null,null,null,null,null,null,null,0]
[null,null,null,null,null,null,null,null,null,null,null,null,null,null,null,null,null,null,null,null,null,null,null,null,null,null,null,null,null,null,null,null,null,null,0]
[null,null,null,null,null,null,null,null,null,null,null,null,null,null,null,null,null,null,null,null,null,null,null,null,null,null,null,null,null,null,null,null,null,null,0]
[null,null,null,null,null,null,null,null,null,null,null,null,null,null,null,null,null,null,null,null,null,null,null,null,null,null,null,null,null,null,null,null,null,null,0]
[null,null,null,null,null,null,null,null,null,null,null,null,null,null,null,null,null,null,null,null,null,null,null,null,null,null,null,null,null,null,null,null,null,null,0]
[null,null,null,null,null,null,null,null,null,null,null,null,null,null,null,null,null,null,null,null,null,null,null,null,null,null,null,null,null,null,null,null,null,null,0]
[null,null,null,null,null,null,null,null,null,null,null,null,null,null,null,null,null,null,null,null,null,null,null,null,null,null,null,null,null,null,null,null,null,null,0]
[null,null,null,null,null,null,null,null,null,null,null,null,null,null,null,null,null,null,null,null,null,null,null,null,null,null,null,null,null,null,null,null,null,null,0]
[null,null,null,null,null,null,null,null,null,null,null,null,null,null,null,null,null,null,null,null,null,null,null,null,null,null,null,null,null,null,null,null,null,null,0]
[null,null,null,null,null,null,null,null,null,null,null,null,null,null,null,null,null,null,null,null,null,null,null,null,null,null,null,null,null,null,null,null,null,null,0]

{"sheet":"（参考）中国語の並び替え","index":4,"n_rows":1023,"n_cols":38,"rows_kept":1023,"cut":false,"hidden":false,"merged":[[21,2,21,7],[34,2,34,7],[21,32,21,37],[34,32,34,37]]}
[null,null,null,null,null,null,null,null,null,null,null,null,null,null,null,null,null,null,null,null,null,null,null,"SP","F","BIN",4,3,2,1]
[null,"本資料は仕様検討時の参考資料である",null,null,null,null,null,null,null,null,null,null,null,null,null,null,null,null,null,null,null,null,null,null,1,{"$f":"IF(Y2=\"\",\"\",DEC2BIN(Y2,4))","v":"0001"},{"$f":"IF($Z2=\"\",\"\",VALUE(MID($Z2,1,1)))","v":0},{"$f":"IF($Z2=\"\",\"\",VALUE(MID($Z2,2,1)))","v":0},{"$f":"IF($Z2=\"\",\"\",VALUE(MID($Z2,3,1)))","v":0},{"$f":"IF($Z2=\"\",\"\",VALUE(MID($Z2,4,1)))","v":1}]
[null,null,null,null,null,null,null,null,null,null,null,null,null,null,null,null,null,null,null,null,null,null,null,null,null,{"$f":"IF(Y3=\"\",\"\",DEC2BIN(Y3,4))","v":""},{"$f":"IF($Z3=\"\",\"\",VALUE(MID($Z3,1,1)))","v":""},{"$f":"IF($Z3=\"\",\"\",VALUE(MID($Z3,2,1)))","v":""},{"$f":"IF($Z3=\"\",\"\",VALUE(MID($Z3,3,1)))","v":""},{"$f":"IF($Z3=\"\",\"\",VALUE(MID($Z3,4,1)))","v":""}]
[null,"＜中国語の並び替え規則＞",null,null,null,null,null,null,null,null,null,null,null,null,null,null,null,null,null,null,null,null,null,null,1,"0001",0,0,0,1]
[null,"中国語の並び替えは、ピンインのアルファベット順ではなく、漢字ごとのピンイン順で並び替える",null,null,null,null,null,null,null,null,null,null,null,null,null,null,null,null,null,null,null,null,null,null,1,"0001",0,0,0,1]
[null,"漢字ごとのピンインは、以下の規則で区切る",null,null,null,null,null,null,null,null,null,null,null,null,null,null,null,null,null,null,null,null,null,null,1,"0001",0,0,0,1]
[null,"１．子音の前で区切る",null,null,null,null,null,null,null,null,null,null,null,null,null,null,null,null,null,null,null,null,null,null,1,"0001",0,0,0,1]
[null,"　注）鼻母音は、１つの塊として扱うので、子音前で区切らないこと",null,null,null,null,null,null,null,null,null,null,null,null,null,null,null,null,null,null,null,null,null,null,1,"0001",0,0,0,1]
[null,"２．鼻母音の後で区切る",null,null,null,null,null,null,null,null,null,null,null,null,null,null,null,null,null,null,null,null,null,null,1,"0001",0,0,0,1]
[null,"　注）ianというピンインの場合、ia（鼻母音）とn（子音）、またはian(鼻母音）の２つの区切り方が考えられるが、この場合は１つの塊でian(鼻母音)として処理する",null,null,null,null,null,null,null,null,null,null,null,null,null,null,null,null,null,null,null,null,null,null,1,"0001",0,0,0,1]
[null,"　     同様にiangというピンインの場合は、ian（鼻母音）とg（子音）、またはiang(鼻母音）の２つの区切り方が考えられるが、この場合も１つの塊でiang(鼻母音)として処理する",null,null,null,null,null,null,null,null,null,null,null,null,null,null,null,null,null,null,null,null,null,null,1,"0001",0,0,0,1]
[null,"３．アポストロフィ（’）で区切る",null,null,null,null,null,null,null,null,null,null,null,null,null,null,null,null,null,null,null,null,null,null,1,"0001",0,0,0,1]
[null,null,null,null,null,null,null,null,null,null,null,null,null,null,null,null,null,null,null,null,null,null,null,null,null,"","","","",""]
[null,"子音　b, c, d, f, g, h, j, k, l, m, n, p, q, r, s, t, x, z, ch, sh, zh、y(※)、w(※)",null,null,null,null,null,null,null,null,null,null,null,null,null,null,null,null,null,null,null,null,null,null,1,"0001",0,0,0,1]
[null,"　※双韻母、複韻母で、前に子音が付かない場合、i、u、üがy、wに変化する為、yとwは子音として判断する",null,null,null,null,null,null,null,null,null,null,null,null,null,null,null,null,null,null,null,null,null,null,1,"0001",0,0,0,1]
[null,"母音　a, o, e, i, u, ü",null,null,null,null,null,null,null,null,null,null,null,null,null,null,null,null,null,null,null,null,null,null,1,"0001",0,0,0,1]
[null,"鼻母音 an, en, in, ian, uan, uen, üan, ün, ang, ong, eng, ing, iang, iong, uang, ueng",null,null,null,null,null,null,null,null,null,null,null,null,null,null,null,null,null,null,null,null,null,null,1,"0001",0,0,0,1]
[null,"※ü は v で入力される。",null,null,null,null,null,null,null,null,null,null,null,null,null,null,null,null,null,null,null,null,null,null,1,"0001",0,0,0,1]
[null,null,null,null,null,null,null,null,null,null,null,null,null,null,null,null,null,null,null,null,null,null,null,null,null,"","","","",""]
[null,"＜中国語の並び替え例＞",null,null,null,null,null,null,null,null,null,null,null,null,null,null,null,null,null,null,null,null,null,null,1,"0001",0,0,0,1]
[null,"登録名が以下の場合のソート順",null,null,null,null,null,null,null,null,null,null,null,null,null,null,null,null,null,null,null,null,null,null,1,"0001",0,0,0,1]
[null,"並び順","登録名",null,null,null,null,null,null,null,null,null,null,null,null,null,null,null,null,null,null,null,null,null,1,"0001",0,0,0,1]
[null,1,"p","i","'","a","o",null,null,"piの後ろでアポストロフィ（’）で区切られているので、piで１つの漢字なので、最初になる。",null,null,null,null,null,null,null,null,null,null,null,null,null,null,1,"0001",0,0,0,1,null,1,"p","i","'","a","o"]
[null,2,"p","i","h","a","o",null,null,"子音(h)の前で区切られるので、３．と同じ漢字を表している。この場合は、第２キー（登録種別）、第３キー（登録No.）でソートする",null,null,null,null,null,null,null,null,null,null,null,null,null,null,1,"0001",0,0,0,1,null,2,"p","i","h","a","o"]
[null,3,"p","i","'","h","a","o",null,"アポストロフィ（’）で区切られるので、２．と同じ漢字を表している。この場合は、第２キー（登録種別）、第３キー（登録No.）でソートする",null,null,null,null,null,null,null,null,null,null,null,null,null,null,1,"0001",0,0,0,1,null,3,"p","i","'","h","a","o"]
[null,4,"p","i","a","o",null,null,null,"文字列としては１．と同じだが、１．は最初の２文字で１つの漢字を表し、４．は４文字で１つの漢字を表すので、並びとしては最後になる。",null,null,null,null,null,null,null,null,null,null,null,null,null,null,1,"0001",0,0,0,1,null,4,"p","i","a","o"]
[null,null,null,null,null,null,null,null,null,null,null,null,null,null,null,null,null,null,null,null,null,null,null,null,null,"","","","",""]
[null,"上記の並びに、piaaを追加する場合は、以下のようになる。",null,null,null,null,null,null,null,null,null,null,null,null,null,null,null,null,null,null,null,null,null,null,1,"0001",0,0,0,1]
[null,"①","１番目のpi'aoと、追加するpiaaを比較する",null,null,null,null,null,"→","区切り単位で比較するので、piとpiaaの比較となり、piaaの方が並び順が後になる",null,null,null,null,null,null,null,null,null,null,null,null,null,null,1,"0001",0,0,0,1]
[null,"②","２番目のpihaoと、追加するpiaaを比較する",null,null,null,null,null,"→",null,null,null,"〃",null,null,null,null,null,null,null,null,null,null,null,1,"0001",0,0,0,1]
[null,"③","３番目のpi'haoと、追加するpiaaを比較する",null,null,null,null,null,"→",null,null,null,"〃",null,null,null,null,null,null,null,null,null,null,null,1,"0001",0,0,0,1]
[null,"④","４番目のpiaoと、追加するpiaaを比較する",null,null,null,null,null,"→","区切りが無いので、piaoとpiaaの比較となり、piaaの方が並び順が先になる",null,null,null,null,null,null,null,null,null,null,null,null,null,null,1,"0001",0,0,0,1]
[null,null,null,null,null,null,null,null,null,null,null,null,null,null,null,null,null,null,null,null,null,null,null,null,null,"","","","",""]
[null,"従って、piaaは、４番目に追加される",null,null,null,null,null,null,null,null,null,null,null,null,null,null,null,null,null,null,null,null,null,null,1,"0001",0,0,0,1]
[null,"並び順","登録名",null,null,null,null,null,null,null,null,null,null,null,null,null,null,null,null,null,null,null,null,null,null,"","","","","",null,"並び順","登録名"]
[null,1,"p","i","'","a","o",null,null,null,null,null,null,null,null,null,null,null,null,null,null,null,null,null,null,"","","","","",null,1,"p","i","'","a","o"]
[null,2,"p","i","h","a","o",null,null,null,null,null,null,null,null,null,null,null,null,null,null,null,null,null,null,"","","","","",null,2,"p","i","h","a","o"]
[null,3,"p","i","'","h","a","o",null,null,null,null,null,null,null,null,null,null,null,null,null,null,null,null,null,"","","","","",null,3,"p","i","'","h","a","o"]
[null,4,"p","i","a","a",null,null,null,null,null,null,null,null,null,null,null,null,null,null,null,null,null,null,null,"","","","","",null,4,"p","i","a","a"]
[null,5,"p","i","a","o",null,null,null,null,null,null,null,null,null,null,null,null,null,null,null,null,null,null,null,"","","","","",null,5,"p","i","a","o"]
[null,null,null,null,null,null,null,null,null,null,null,null,null,null,null,null,null,null,null,null,null,null,null,"e","e","e","e","e","ee","e"]
[]
[]
[]
[]
[]
[]
[]
[]
[]
[]
[]
[]
[]
[]
[]
[]
[]
[]
[]
[]
[]
[]
[]
[]
[]
[]
[]
[]
[]
[]
[]
[]
[]
[]
[]
[]
[]
[]
[]
[]
[]
[]
[]
[]
[]
[]
[]
[]
[]
[]
[]
[]
[]
[]
[]
[]
[]
[]
[]
[]
[]
[]
[]
[]
[]
[]
[]
[]
[]
[]
[]
[]
[]
[]
[]
[]
[]
[]
[]
[]
[]
[]
[]
[]
[]
[]
[]
[]
[]
[]
[]
[]
[]
[]
[]
[]
[]
[]
[]
[]
[]
[]
[]
[]
[]
[]
[]
[]
[]
[]
[]
[]
[]
[]
[]
[]
[]
[]
[]
[]
[]
[]
[]
[]
[]
[]
[]
[]
[]
[]
[]
[]
[]
[]
[]
[]
[]
[]
[]
[]
[]
[]
[]
[]
[]
[]
[]
[]
[]
[]
[]
[]
[]
[]
[]
[]
[]
[]
[]
[]
[]
[]
[]
[]
[]
[]
[]
[]
[]
[]
[]
[]
[]
[]
[]
[]
[]
[]
[]
[]
[]
[]
[]
[]
[]
[]
[]
[]
[]
[]
[]
[]
[]
[]
[]
[]
[]
[]
[]
[]
[]
[]
[]
[]
[]
[]
[]
[]
[]
[]
[]
[]
[]
[]
[]
[]
[]
[]
[]
[]
[]
[]
[]
[]
[]
[]
[]
[]
[]
[]
[]
[]
[]
[]
[]
[]
[]
[]
[]
[]
[]
[]
[]
[]
[]
[]
[]
[]
[]
[]
[]
[]
[]
[]
[]
[]
[]
[]
[]
[]
[]
[]
[]
[]
[]
[]
[]
[]
[]
[]
[]
[]
[]
[]
[]
[]
[]
[]
[]
[]
[]
[]
[]
[]
[]
[]
[]
[]
[]
[]
[]
[]
[]
[]
[]
[]
[]
[]
[]
[]
[]
[]
[]
[]
[]
[]
[]
[]
[]
[]
[]
[]
[]
[]
[]
[]
[]
[]
[]
[]
[]
[]
[]
[]
[]
[]
[]
[]
[]
[]
[]
[]
[]
[]
[]
[]
[]
[]
[]
[]
[]
[]
[]
[]
[]
[]
[]
[]
[]
[]
[]
[]
[]
[]
[]
[]
[]
[]
[]
[]
[]
[]
[]
[]
[]
[]
[]
[]
[]
[]
[]
[]
[]
[]
[]
[]
[]
[]
[]
[]
[]
[]
[]
[]
[]
[]
[]
[]
[]
[]
[]
[]
[]
[]
[]
[]
[]
[]
[]
[]
[]
[]
[]
[]
[]
[]
[]
[]
[]
[]
[]
[]
[]
[]
[]
[]
[]
[]
[]
[]
[]
[]
[]
[]
[]
[]
[]
[]
[]
[]
[]
[]
[]
[]
[]
[]
[]
[]
[]
[]
[]
[]
[]
[]
[]
[]
[]
[]
[]
[]
[]
[]
[]
[]
[]
[]
[]
[]
[]
[]
[]
[]
[]
[]
[]
[]
[]
[]
[]
[]
[]
[]
[]
[]
[]
[]
[]
[]
[]
[]
[]
[]
[]
[]
[]
[]
[]
[]
[]
[]
[]
[]
[]
[]
[]
[]
[]
[]
[]
[]
[]
[]
[]
[]
[]
[]
[]
[]
[]
[]
[]
[]
[]
[]
[]
[]
[]
[]
[]
[]
[]
[]
[]
[]
[]
[]
[]
[]
[]
[]
[]
[]
[]
[]
[]
[]
[]
[]
[]
[]
[]
[]
[]
[]
[]
[]
[]
[]
[]
[]
[]
[]
[]
[]
[]
[]
[]
[]
[]
[]
[]
[]
[]
[]
[]
[]
[]
[]
[]
[]
[]
[]
[]
[]
[]
[]
[]
[]
[]
[]
[]
[]
[]
[]
[]
[]
[]
[]
[]
[]
[]
[]
[]
[]
[]
[]
[]
[]
[]
[]
[]
[]
[]
[]
[]
[]
[]
[]
[]
[]
[]
[]
[]
[]
[]
[]
[]
[]
[]
[]
[]
[]
[]
[]
[]
[]
[]
[]
[]
[]
[]
[]
[]
[]
[]
[]
[]
[]
[]
[]
[]
[]
[]
[]
[]
[]
[]
[]
[]
[]
[]
[]
[]
[]
[]
[]
[]
[]
[]
[]
[]
[]
[]
[]
[]
[]
[]
[]
[]
[]
[]
[]
[]
[]
[]
[]
[]
[]
[]
[]
[]
[]
[]
[]
[]
[]
[]
[]
[]
[]
[]
[]
[]
[]
[]
[]
[]
[]
[]
[]
[]
[]
[]
[]
[]
[]
[]
[]
[]
[]
[]
[]
[]
[]
[]
[]
[]
[]
[]
[]
[]
[]
[]
[]
[]
[]
[]
[]
[]
[]
[]
[]
[]
[]
[]
[]
[]
[]
[]
[]
[]
[]
[]
[]
[]
[]
[]
[]
[]
[]
[]
[]
[]
[]
[]
[]
[]
[]
[]
[]
[]
[]
[]
[]
[]
[]
[]
[]
[]
[]
[]
[]
[]
[]
[]
[]
[]
[]
[]
[]
[]
[]
[]
[]
[]
[]
[]
[]
[]
[]
[]
[]
[]
[]
[]
[]
[]
[]
[]
[]
[]
[]
[]
[]
[]
[]
[]
[]
[]
[]
[]
[]
[]
[]
[]
[]
[]
[]
[]
[]
[]
[]
[]
[]
[]
[]
[]
[]
[]
[]
[]
[]
[]
[]
[]
[]
[]
[]
[]
[]
[]
[]
[]
[]
[]
[]
[]
[]
[]
[]
[]
[]
[]
[]
[]
[]
[]
[]
[]
[]
[]
[]
[]
[]
[]
[]
[]
[]
[]
[]
[]
[]
[]
[]
[]
[]
[]
[]
[]
[]
[]
[]
[]
[]
[]
[]
[]
[]
[]
[]
[]
[]
[]
[]
[]
[]
[]
[]
[]
[]
[]
[]
[]
[]
[]
[]
[]
[]
[]
[]
[]
[]
[]
[]
[]
[]
[]
[]
[]
[]
[]
[]
[]
[]
[]
[]
[]
[]
[]
[]
[]
[]
[]
[]
[]
[]
[]
[]
[]
[]
[]
[]
[]
[]
[]
[]
[]
[]
[]
[]
[]
[]
[]
[]
[]
[]
[]
[]
[]
[null,null,null,null,null,null,null,null,null,null,null,null,null,null,null,null,null,null,null,null,null,null,null,0]
[null,null,null,null,null,null,null,null,null,null,null,null,null,null,null,null,null,null,null,null,null,null,null,0]
[null,null,null,null,null,null,null,null,null,null,null,null,null,null,null,null,null,null,null,null,null,null,null,0]
[null,null,null,null,null,null,null,null,null,null,null,null,null,null,null,null,null,null,null,null,null,null,null,0]
[null,null,null,null,null,null,null,null,null,null,null,null,null,null,null,null,null,null,null,null,null,null,null,0]
[null,null,null,null,null,null,null,null,null,null,null,null,null,null,null,null,null,null,null,null,null,null,null,0]
[null,null,null,null,null,null,null,null,null,null,null,null,null,null,null,null,null,null,null,null,null,null,null,0]
[null,null,null,null,null,null,null,null,null,null,null,null,null,null,null,null,null,null,null,null,null,null,null,0]
[null,null,null,null,null,null,null,null,null,null,null,null,null,null,null,null,null,null,null,null,null,null,null,0]
[null,null,null,null,null,null,null,null,null,null,null,null,null,null,null,null,null,null,null,null,null,null,null,0]
[null,null,null,null,null,null,null,null,null,null,null,null,null,null,null,null,null,null,null,null,null,null,null,0]
[null,null,null,null,null,null,null,null,null,null,null,null,null,null,null,null,null,null,null,null,null,null,null,0]
[null,null,null,null,null,null,null,null,null,null,null,null,null,null,null,null,null,null,null,null,null,null,null,0]
[null,null,null,null,null,null,null,null,null,null,null,null,null,null,null,null,null,null,null,null,null,null,null,0]
[null,null,null,null,null,null,null,null,null,null,null,null,null,null,null,null,null,null,null,null,null,null,null,0]
[null,null,null,null,null,null,null,null,null,null,null,null,null,null,null,null,null,null,null,null,null,null,null,0]
[null,null,null,null,null,null,null,null,null,null,null,null,null,null,null,null,null,null,null,null,null,null,null,0]
[null,null,null,null,null,null,null,null,null,null,null,null,null,null,null,null,null,null,null,null,null,null,null,0]
[null,null,null,null,null,null,null,null,null,null,null,null,null,null,null,null,null,null,null,null,null,null,null,0]
[null,null,null,null,null,null,null,null,null,null,null,null,null,null,null,null,null,null,null,null,null,null,null,0]
[null,null,null,null,null,null,null,null,null,null,null,null,null,null,null,null,null,null,null,null,null,null,null,0]
[null,null,null,null,null,null,null,null,null,null,null,null,null,null,null,null,null,null,null,null,null,null,null,0]
[null,null,null,null,null,null,null,null,null,null,null,null,null,null,null,null,null,null,null,null,null,null,null,0]

{"sheet":"(参考）OOXML出力形式 ","index":5,"n_rows":1015,"n_cols":22,"rows_kept":1015,"cut":false,"hidden":false,"merged":[[436,2,439,9],[429,2,433,2],[429,3,429,4],[429,5,429,9],[430,3,430,4],[430,5,430,9],[431,3,431,4],[431,5,431,9],[432,3,432,4],[432,5,432,9],[433,3,433,4],[433,5,433,9],[422,3,422,4],[422,5,422,9],[423,2,428,2],[423,3,423,4],[423,5,423,9],[424,3,424,4],[424,5,424,9],[425,3,425,4],[425,5,425,9],[426,3,426,4],[426,5,426,9],[427,3,427,4],[427,5,427,9],[428,3,428,4],[428,5,428,9],[422,25,422,26],[422,27,422,31],[423,24,428,24],[423,25,423,26],[423,27,423,31],[424,25,424,26],[424,27,424,31],[425,25,425,26],[425,27,425,31],[426,25,426,26],[426,27,426,31],[427,25,427,26],[427,27,427,31],[428,25,428,26],[428,27,428,31],[436,24,439,31],[429,24,433,24],[429,25,429,26],[429,27,429,31],[430,25,430,26],[430,27,430,31],[431,25,431,26],[431,27,431,31],[432,25,432,26],[432,27,432,31],[433,25,433,26],[433,27,433,31]]}
[null,null,null,null,null,null,null,null,null,null,null,null,null,null,null,"SP","F","BIN",4,3,2,1]
["(参考）OOXML出力形式 ",null,null,null,null,null,null,null,null,null,null,null,null,null,null,null,1,{"$f":"IF(Q2=\"\",\"\",DEC2BIN(Q2,4))","v":"0001"},{"$f":"IF($R2=\"\",\"\",VALUE(MID($R2,1,1)))","v":0},{"$f":"IF($R2=\"\",\"\",VALUE(MID($R2,2,1)))","v":0},{"$f":"IF($R2=\"\",\"\",VALUE(MID($R2,3,1)))","v":0},{"$f":"IF($R2=\"\",\"\",VALUE(MID($R2,4,1)))","v":1}]
[null,null,null,null,null,null,null,null,null,null,null,null,null,null,null,null,null,{"$f":"IF(Q3=\"\",\"\",DEC2BIN(Q3,4))","v":""},{"$f":"IF($R3=\"\",\"\",VALUE(MID($R3,1,1)))","v":""},{"$f":"IF($R3=\"\",\"\",VALUE(MID($R3,2,1)))","v":""},{"$f":"IF($R3=\"\",\"\",VALUE(MID($R3,3,1)))","v":""},{"$f":"IF($R3=\"\",\"\",VALUE(MID($R3,4,1)))","v":""}]
["１．Power Point　の出力形式 ",null,null,null,null,null,null,null,null,null,null,null,null,null,null,null,1,"0001",0,0,0,1]
[null,null,null,null,null,null,null,null,null,null,null,null,null,null,null,null,null,"","","","",""]
[null,"◆出力形式：画像優先",null,null,null,null,null,null,null,null,null,null,null,null,null,null,1,"0001",0,0,0,1]
[null,null,null,null,null,null,null,null,null,null,null,null,null,null,null,null,null,"","","","",""]
[null,null,null,null,null,null,null,null,null,null,null,null,null,null,null,null,null,"","","","",""]
[null,null,null,null,null,null,null,null,null,null,null,null,null,null,null,null,null,"","","","",""]
[null,null,null,null,null,null,null,null,null,null,null,null,null,null,null,null,null,"","","","",""]
[null,null,null,null,null,null,null,null,null,null,null,null,null,null,null,null,null,"","","","",""]
[null,null,null,null,null,null,null,null,null,null,null,null,null,null,null,null,null,"","","","",""]
[null,null,null,null,null,null,null,null,null,null,null,null,null,null,null,null,null,"","","","",""]
[null,null,null,null,null,null,null,null,null,null,null,null,null,null,null,null,null,"","","","",""]
[null,null,null,null,null,null,null,null,null,null,null,null,null,null,null,null,null,"","","","",""]
[null,null,null,null,null,null,null,null,null,null,null,null,null,null,null,null,null,"","","","",""]
[null,null,null,null,null,null,null,null,null,null,null,null,null,null,null,null,null,"","","","",""]
[null,null,null,null,null,null,null,null,null,null,null,null,null,null,null,null,null,"","","","",""]
[null,null,null,null,null,null,null,null,null,null,null,null,null,null,null,null,null,"","","","",""]
[null,null,null,null,null,null,null,null,null,null,null,null,null,null,null,null,null,"","","","",""]
[null,null,null,null,null,null,null,null,null,null,null,null,null,null,null,null,null,"","","","",""]
[null,null,null,null,null,null,null,null,null,null,null,null,null,null,null,null,null,"","","","",""]
[null,null,null,null,null,null,null,null,null,null,null,null,null,null,null,null,null,"","","","",""]
[null,null,null,null,null,null,null,null,null,null,null,null,null,null,null,null,null,"","","","",""]
[null,null,null,null,null,null,null,null,null,null,null,null,null,null,null,null,null,"","","","",""]
[null,null,null,null,null,null,null,null,null,null,null,null,null,null,null,null,null,"","","","",""]
[null,null,null,null,null,null,"図１　レイヤ構造",null,null,null,null,null,null,null,null,null,1,"0001",0,0,0,1]
[null,null,null,null,null,null,null,null,null,null,null,null,null,null,null,null,null,"","","","",""]
[null,null,null,null,null,null,null,null,null,null,null,null,null,null,null,null,null,"","","","",""]
[null,"◆出力形式：画像のみ",null,null,null,null,null,null,null,null,null,null,null,null,null,null,1,"0001",0,0,0,1]
[null,null,null,null,null,null,null,null,null,null,null,null,null,null,null,null,null,"","","","",""]
[null,null,null,null,null,null,null,null,null,null,null,null,null,null,null,null,null,"","","","",""]
[null,null,null,null,null,null,null,null,null,null,null,null,null,null,null,null,null,"","","","",""]
[null,null,null,null,null,null,null,null,null,null,null,null,null,null,null,null,null,"","","","",""]
[null,null,null,null,null,null,null,null,null,null,null,null,null,null,null,null,null,"","","","",""]
[null,null,null,null,null,null,null,null,null,null,null,null,null,null,null,null,null,"","","","",""]
[null,null,null,null,null,null,null,null,null,null,null,null,null,null,null,null,null,"","","","",""]
[null,null,null,null,null,null,null,null,null,null,null,null,null,null,null,null,null,"","","","",""]
[null,null,null,null,null,null,null,null,null,null,null,null,null,null,null,null,null,"","","","",""]
[null,null,null,null,null,null,null,null,null,null,null,null,null,null,null,null,null,"","","","",""]
[null,null,null,null,null,null,null,null,null,null,null,null,null,null,null,null,null,"","","","",""]
[null,null,null,null,null,null,null,null,null,null,null,null,null,null,null,null,null,"","","","",""]
[null,null,null,null,null,null,null,null,null,null,null,null,null,null,null,null,null,"","","","",""]
[null,null,null,null,null,null,null,null,null,null,null,null,null,null,null,null,null,"","","","",""]
[null,null,null,null,null,null,null,null,null,null,null,null,null,null,null,null,null,"","","","",""]
[null,null,null,null,null,null,null,null,null,null,null,null,null,null,null,null,null,"","","","",""]
[null,null,null,null,null,null,null,null,null,null,null,null,null,null,null,null,null,"","","","",""]
[null,null,null,null,null,null,"図２　レイヤ構造",null,null,null,null,null,null,null,null,null,1,"0001",0,0,0,1]
[null,null,null,null,null,null,null,null,null,null,null,null,null,null,null,null,null,"","","","",""]
[null,null,null,null,null,null,null,null,null,null,null,null,null,null,null,null,null,"","","","",""]
[null,null,null,null,null,null,null,null,null,null,null,null,null,null,null,null,null,"","","","",""]
[null,null,null,null,null,null,null,null,null,null,null,null,null,null,null,null,null,"","","","",""]
[null,null,null,null,null,null,null,null,null,null,null,null,null,null,null,null,null,"","","","",""]
[null,null,null,null,null,null,null,null,null,null,null,null,null,null,null,null,null,"","","","",""]
[null,null,null,null,null,null,null,null,null,null,null,null,null,null,null,null,null,"","","","",""]
[null,null,null,null,null,null,null,null,null,null,null,null,null,null,null,null,null,"","","","",""]
[null,null,null,null,null,null,null,null,null,null,null,null,null,null,null,null,null,"","","","",""]
[null,null,null,null,null,null,null,null,null,null,null,null,null,null,null,null,null,"","","","",""]
[null,null,null,null,null,null,null,null,null,null,null,null,null,null,null,null,null,"","","","",""]
["２．OOXML Word　の出力形式 ",null,null,null,null,null,null,null,null,null,null,null,null,null,null,null,1,"0001",0,0,0,1]
[null,null,null,null,null,null,null,null,null,null,null,null,null,null,null,null,null,"","","","",""]
[null,"◆出力形式：画像と文字",null,null,null,null,null,null,null,null,null,null,null,null,null,null,1,"0001",0,0,0,1]
[null,null,null,null,null,null,null,null,null,null,null,null,null,null,null,null,null,"","","","",""]
[null,null,"（１）OCRの結果、座標位置が近いテキスト同士は結合して一つのテキストボックスとする",null,null,null,null,null,null,null,null,null,null,null,null,null,1,"0001",0,0,0,1]
[null,null,"※横書きであれば上側文字の左下座標と他のテキストの左上座標、",null,null,null,null,null,null,null,null,null,null,null,null,null,1,"0001",0,0,0,1]
[null,null,"　 縦書きであれば右側文字の左上座標と他のテキストの右上座標の距離に応じてボックスを結合する。",null,null,null,null,null,null,null,null,null,null,null,null,null,1,"0001",0,0,0,1]
[null,null,"（２）結合されても結合前のそれぞれのフォントサイズは維持する",null,null,null,null,null,null,null,null,null,null,null,null,null,1,{"$f":"IF(Q67=\"\",\"\",DEC2BIN(Q67,4))","v":"0001"},{"$f":"IF($R67=\"\",\"\",VALUE(MID($R67,1,1)))","v":0},{"$f":"IF($R67=\"\",\"\",VALUE(MID($R67,2,1)))","v":0},{"$f":"IF($R67=\"\",\"\",VALUE(MID($R67,3,1)))","v":0},{"$f":"IF($R67=\"\",\"\",VALUE(MID($R67,4,1)))","v":1}]
[null,null,"（３）結合されたテキストボックスのサイズは、全てのテキストボックスを内包する矩形サイズとする",null,null,null,null,null,null,null,null,null,null,null,null,null,1,"0001",0,0,0,1]
[null,null,"（４）下記算術方法にて行間距離を決定する",null,null,null,null,null,null,null,null,null,null,null,null,null,1,"0001",0,0,0,1]
[null,null,"※横書き：（上述のテキストボックスの縦サイズ - 結合された全テキストボックス高さの合計）/ （結合文字行数－１）",null,null,null,null,null,null,null,null,null,null,null,null,null,1,"0001",0,0,0,1]
[null,null,"　 縦書き：（上述のテキストボックスの横サイズ - 結合された全テキストボックス幅の合計）/ （結合文字行数－１）",null,null,null,null,null,null,null,null,null,null,null,null,null,1,"0001",0,0,0,1]
[null,null,"（５）ページレイアウトは奇数ページ目に背景JPEG＋文字画像（PNG)、偶数ページ目にOCRテキストレイヤを表示",null,null,null,null,null,null,null,null,null,null,null,null,null,1,"0001",0,0,0,1]
[null,null,"　　⇒ページ数は原稿の２倍となる",null,null,null,null,null,null,null,null,null,null,null,null,null,1,"0001",0,0,0,1]
[null,null,"※表示は見開き２ページとする",null,null,null,null,null,null,null,null,null,null,null,null,null,1,"0001",0,0,0,1]
[null,null,null,null,null,null,null,null,null,null,null,null,null,null,null,null,null,"","","","",""]
[null,null,null,null,null,null,null,null,null,null,null,null,null,null,null,null,null,"","","","",""]
[null,null,null,null,null,null,null,null,null,null,null,null,null,null,null,null,null,"","","","",""]
[null,null,null,null,null,null,null,null,null,null,null,null,null,null,null,null,null,"","","","",""]
[null,null,null,null,null,null,null,null,null,null,null,null,null,null,null,null,null,"","","","",""]
[null,null,null,null,null,null,null,null,null,null,null,null,null,null,null,null,null,"","","","",""]
[null,null,null,null,null,null,null,null,null,null,null,null,null,null,null,null,null,"","","","",""]
[null,null,null,null,null,null,null,null,null,null,null,null,null,null,null,null,null,"","","","",""]
[null,null,null,null,null,null,null,null,null,null,null,null,null,null,null,null,null,"","","","",""]
[null,null,null,null,null,null,null,null,null,null,null,null,null,null,null,null,null,"","","","",""]
[null,null,null,null,null,null,null,null,null,null,null,null,null,null,null,null,null,"","","","",""]
[null,null,null,null,null,null,null,null,null,null,null,null,null,null,null,null,null,"","","","",""]
[null,null,null,null,null,null,null,null,null,null,null,null,null,null,null,null,null,"","","","",""]
[null,null,null,null,null,null,null,null,null,null,null,null,null,null,null,null,null,"","","","",""]
[null,null,null,null,null,null,null,null,null,null,null,null,null,null,null,null,null,"","","","",""]
[null,null,null,null,null,null,null,null,null,null,null,null,null,null,null,null,null,"","","","",""]
[null,null,null,null,null,null,null,null,null,null,null,null,null,null,null,null,null,"","","","",""]
[null,null,null,null,null,null,null,null,null,null,null,null,null,null,null,null,null,"","","","",""]
[null,null,null,null,null,null,null,null,null,null,null,null,null,null,null,null,null,"","","","",""]
[null,null,null,null,null,null,null,null,null,null,null,null,null,null,null,null,null,"","","","",""]
[null,null,null,null,null,null,"図３　処理結果",null,null,null,null,null,null,null,null,null,1,"0001",0,0,0,1]
[null,null,null,null,null,null,null,null,null,null,null,null,null,null,null,null,null,"","","","",""]
[null,null,null,null,null,null,null,null,null,null,null,null,null,null,null,null,null,"","","","",""]
[null,null,null,null,null,null,null,null,null,null,null,null,null,null,null,null,null,"","","","",""]
[null,null,null,null,null,null,null,null,null,null,null,null,null,null,null,null,null,"","","","",""]
[null,null,null,null,null,null,null,null,null,null,null,null,null,null,null,null,null,"","","","",""]
[null,null,null,null,null,null,null,null,null,null,null,null,null,null,null,null,null,"","","","",""]
[null,null,null,null,null,null,null,null,null,null,null,null,null,null,null,null,null,"","","","",""]
[null,null,null,null,null,null,null,null,null,null,null,null,null,null,null,null,null,"","","","",""]
[null,null,null,null,null,null,null,null,null,null,null,null,null,null,null,null,null,"","","","",""]
[null,null,null,null,null,null,null,null,null,null,null,null,null,null,null,null,null,"","","","",""]
[null,null,null,null,null,null,null,null,null,null,null,null,null,null,null,null,null,"","","","",""]
[null,null,null,null,null,null,null,null,null,null,null,null,null,null,null,null,null,"","","","",""]
[null,null,null,null,null,null,null,null,null,null,null,null,null,null,null,null,null,"","","","",""]
[null,null,null,null,null,null,null,null,null,null,null,null,null,null,null,null,null,"","","","",""]
[null,null,null,null,null,null,"図４　レイヤ構造",null,null,null,null,null,null,null,null,null,1,"0001",0,0,0,1]
[null,null,null,null,null,null,null,null,null,null,null,null,null,null,null,null,null,"","","","",""]
[null,null,null,null,null,null,null,null,null,null,null,null,null,null,null,null,null,"","","","",""]
[null,null,null,null,null,null,null,null,null,null,null,null,null,null,null,null,null,"","","","",""]
[null,null,null,null,null,null,null,null,null,null,null,null,null,null,null,null,null,"","","","",""]
[null,null,null,null,null,null,null,null,null,null,null,null,null,null,null,null,null,"","","","",""]
[null,null,null,null,null,null,null,null,null,null,null,null,null,null,null,null,null,"","","","",""]
[null,"◆出力形式：文字優先",null,null,null,null,null,null,null,null,null,null,null,null,null,null,1,"0001",0,0,0,1]
[null,null,null,null,null,null,null,null,null,null,null,null,null,null,null,null,null,"","","","",""]
[null,null,"（１）OCRの結果、座標位置が近いテキスト同士は結合して一つのテキストボックスとする",null,null,null,null,null,null,null,null,null,null,null,null,null,1,"0001",0,0,0,1]
[null,null,"※横書きであれば上側文字の左下座標と他のテキストの左上座標、",null,null,null,null,null,null,null,null,null,null,null,null,null,1,"0001",0,0,0,1]
[null,null,"　 縦書きであれば右側文字の左上座標と他のテキストの右上座標の距離に応じてボックスを結合する。",null,null,null,null,null,null,null,null,null,null,null,null,null,1,"0001",0,0,0,1]
[null,null,"（２）結合されても結合前のそれぞれのフォントサイズは維持する",null,null,null,null,null,null,null,null,null,null,null,null,null,1,"0001",0,0,0,1]
[null,null,"（３）結合されたテキストボックスのサイズは、全てのテキストボックスを内包する矩形サイズとする",null,null,null,null,null,null,null,null,null,null,null,null,null,1,"0001",0,0,0,1]
[null,null,"（４）下記算術方法にて行間距離を決定する",null,null,null,null,null,null,null,null,null,null,null,null,null,1,"0001",0,0,0,1]
[null,null,"※横書き：（上述のテキストボックスの縦サイズ - 結合された全テキストボックス高さの合計）/ （結合文字行数－１）",null,null,null,null,null,null,null,null,null,null,null,null,null,1,"0001",0,0,0,1]
[null,null,"　 縦書き：（上述のテキストボックスの横サイズ - 結合された全テキストボックス幅の合計）/ （結合文字行数－１）",null,null,null,null,null,null,null,null,null,null,null,null,null,1,"0001",0,0,0,1]
[null,null,"（５）ページレイヤ構造を図3に示すように、Word表示エリア⇒背景JPEGレイヤ⇒OCRテキストレイヤ　とする",null,null,null,null,null,null,null,null,null,null,null,null,null,1,"0001",0,0,0,1]
[null,null,"※　誤認識しているOCR処理結果も表示される",null,null,null,null,null,null,null,null,null,null,null,null,null,1,"0001",0,0,0,1]
[null,null,null,null,null,null,null,null,null,null,null,null,null,null,null,null,null,"","","","",""]
[null,null,null,null,null,null,null,null,null,null,null,null,null,null,null,null,null,"","","","",""]
[null,null,null,null,null,null,null,null,null,null,null,null,null,null,null,null,null,{"$f":"IF(Q131=\"\",\"\",DEC2BIN(Q131,4))","v":""},{"$f":"IF($R131=\"\",\"\",VALUE(MID($R131,1,1)))","v":""},{"$f":"IF($R131=\"\",\"\",VALUE(MID($R131,2,1)))","v":""},{"$f":"IF($R131=\"\",\"\",VALUE(MID($R131,3,1)))","v":""},{"$f":"IF($R131=\"\",\"\",VALUE(MID($R131,4,1)))","v":""}]
[null,null,null,null,null,null,null,null,null,null,null,null,null,null,null,null,null,"","","","",""]
[null,null,null,null,null,null,null,null,null,null,null,null,null,null,null,null,null,"","","","",""]
[null,null,null,null,null,null,null,null,null,null,null,null,null,null,null,null,null,"","","","",""]
[null,null,null,null,null,null,null,null,null,null,null,null,null,null,null,null,null,"","","","",""]
[null,null,null,null,null,null,null,null,null,null,null,null,null,null,null,null,null,"","","","",""]
[null,null,null,null,null,null,null,null,null,null,null,null,null,null,null,null,null,"","","","",""]
[null,null,null,null,null,null,null,null,null,null,null,null,null,null,null,null,null,"","","","",""]
[null,null,null,null,null,null,null,null,null,null,null,null,null,null,null,null,null,"","","","",""]
[null,null,null,null,null,null,null,null,null,null,null,null,null,null,null,null,null,"","","","",""]
[null,null,null,null,null,null,null,null,null,null,null,null,null,null,null,null,null,"","","","",""]
[null,null,null,null,null,null,null,null,null,null,null,null,null,null,null,null,null,"","","","",""]
[null,null,null,null,null,null,null,null,null,null,null,null,null,null,null,null,null,"","","","",""]
[null,null,null,null,null,null,"図５　処理結果＆レイヤ構造",null,null,null,null,null,null,null,null,null,1,"0001",0,0,0,1]
[null,null,null,null,null,null,null,null,null,null,null,null,null,null,null,null,null,"","","","",""]
[null,null,null,null,null,null,null,null,null,null,null,null,null,null,null,null,null,"","","","",""]
[null,"◆出力形式：画像のみ",null,null,null,null,null,null,null,null,null,null,null,null,null,null,1,"0001",0,0,0,1]
[null,null,null,null,null,null,null,null,null,null,null,null,null,null,null,null,null,"","","","",""]
[null,null,"（１）スキャン画像だけをはりつける(OCR機能off時)",null,null,null,null,null,null,null,null,null,null,null,null,null,1,"0001",0,0,0,1]
[null,null,null,null,null,null,null,null,null,null,null,null,null,null,null,null,null,"","","","",""]
[null,null,null,null,null,null,null,null,null,null,null,null,null,null,null,null,null,"","","","",""]
[null,null,null,null,null,null,null,null,null,null,null,null,null,null,null,null,null,"","","","",""]
[null,null,null,null,null,null,null,null,null,null,null,null,null,null,null,null,null,"","","","",""]
[null,null,null,null,null,null,null,null,null,null,null,null,null,null,null,null,null,"","","","",""]
[null,null,null,null,null,null,null,null,null,null,null,null,null,null,null,null,null,"","","","",""]
[null,null,null,null,null,null,null,null,null,null,null,null,null,null,null,null,null,"","","","",""]
[null,null,null,null,null,null,null,null,null,null,null,null,null,null,null,null,null,"","","","",""]
[null,null,null,null,null,null,null,null,null,null,null,null,null,null,null,null,null,"","","","",""]
[null,null,null,null,null,null,null,null,null,null,null,null,null,null,null,null,null,"","","","",""]
[null,null,null,null,null,null,null,null,null,null,null,null,null,null,null,null,null,"","","","",""]
[null,null,null,null,null,null,null,null,null,null,null,null,null,null,null,null,null,"","","","",""]
[null,null,null,null,null,null,null,null,null,null,null,null,null,null,null,null,null,"","","","",""]
[null,null,null,null,null,null,null,null,null,null,null,null,null,null,null,null,null,"","","","",""]
[null,null,null,null,null,null,"図６　レイヤ構造",null,null,null,null,null,null,null,null,null,1,"0001",0,0,0,1]
[null,null,null,null,null,null,null,null,null,null,null,null,null,null,null,null,null,"","","","",""]
[null,null,null,null,null,null,null,null,null,null,null,null,null,null,null,null,null,"","","","",""]
[null,null,null,null,null,null,null,null,null,null,null,null,null,null,null,null,null,"","","","",""]
[null,null,null,null,null,null,null,null,null,null,null,null,null,null,null,null,null,"","","","",""]
[null,null,null,null,null,null,null,null,null,null,null,null,null,null,null,null,null,"","","","",""]
[null,null,null,null,null,null,null,null,null,null,null,null,null,null,null,null,null,"","","","",""]
[null,null,null,null,null,null,null,null,null,null,null,null,null,null,null,null,null,"","","","",""]
[null,null,null,null,null,null,null,null,null,null,null,null,null,null,null,null,null,"","","","",""]
[null,null,null,null,null,null,null,null,null,null,null,null,null,null,null,null,null,"","","","",""]
["３．OOXML Excel　の出力形式 ",null,null,null,null,null,null,null,null,null,null,null,null,null,null,null,1,"0001",0,0,0,1]
[null,null,null,null,null,null,null,null,null,null,null,null,null,null,null,null,null,"","","","",""]
[null,"◆出力形式：画像と文字",null,null,null,null,null,null,null,null,null,null,null,null,null,null,1,"0001",0,0,0,1]
[null,null,null,null,null,null,null,null,null,null,null,null,null,null,null,null,null,"","","","",""]
[null,null,"（１）一つのセルに一つのocr結果(ocr結果は行単位で出力される)が当てはまるように、計算する。",null,null,null,null,null,null,null,null,null,null,null,null,null,1,"0001",0,0,0,1]
[null,null,"(ocr結果の、左上座標点、左下座標点から計算する)",null,null,null,null,null,null,null,null,null,null,null,null,null,1,"0001",0,0,0,1]
[null,null,"（２）行の高さをフォントサイズにそろえる",null,null,null,null,null,null,null,null,null,null,null,null,null,1,"0001",0,0,0,1]
[null,null,"（３）縦書きがある場合は、縦方向のセル結合を行う。ただし、テキストが書かれているセルと重なっている場合は、",null,null,null,null,null,null,null,null,null,null,null,null,null,1,"0001",0,0,0,1]
[null,null,"テキストが書かれているセルの、一つ手前のセルまでの結合に留める。更に、横方向のセル結合は行わない",null,null,null,null,null,null,null,null,null,null,null,null,null,1,"0001",0,0,0,1]
[null,null,"（４）最後に左側にスキャン画像を、右側にテキスト結果(ocr機能on時のみ)を張り付ける。",null,null,null,null,null,null,null,null,null,null,null,null,null,1,"0001",0,0,0,1]
[null,null,null,null,null,null,null,null,null,null,null,null,null,null,null,null,null,"","","","",""]
[null,null,null,null,null,null,null,null,null,null,null,null,null,null,null,null,null,"","","","",""]
[null,null,null,null,null,null,null,null,null,null,null,null,null,null,null,null,null,"","","","",""]
[null,null,null,null,null,null,null,null,null,null,null,null,null,null,null,null,null,"","","","",""]
[null,null,null,null,null,null,null,null,null,null,null,null,null,null,null,null,null,"","","","",""]
[null,null,null,null,null,null,null,null,null,null,null,null,null,null,null,null,null,"","","","",""]
[null,null,null,null,null,null,null,null,null,null,null,null,null,null,null,null,null,"","","","",""]
[null,null,null,null,null,null,null,null,null,null,null,null,null,null,null,null,null,"","","","",""]
[null,null,null,null,null,null,null,null,null,null,null,null,null,null,null,null,null,"","","","",""]
[null,null,null,null,null,null,null,null,null,null,null,null,null,null,null,null,null,"","","","",""]
[null,null,null,null,null,null,null,null,null,null,null,null,null,null,null,null,null,"","","","",""]
[null,null,null,null,null,null,null,null,null,null,null,null,null,null,null,null,null,{"$f":"IF(Q195=\"\",\"\",DEC2BIN(Q195,4))","v":""},{"$f":"IF($R195=\"\",\"\",VALUE(MID($R195,1,1)))","v":""},{"$f":"IF($R195=\"\",\"\",VALUE(MID($R195,2,1)))","v":""},{"$f":"IF($R195=\"\",\"\",VALUE(MID($R195,3,1)))","v":""},{"$f":"IF($R195=\"\",\"\",VALUE(MID($R195,4,1)))","v":""}]
[null,null,null,null,null,null,null,null,null,null,null,null,null,null,null,null,null,"","","","",""]
[null,null,null,null,null,null,null,null,null,null,null,null,null,null,null,null,null,"","","","",""]
[null,null,null,null,null,null,null,null,null,null,null,null,null,null,null,null,null,"","","","",""]
[null,null,null,null,null,null,null,null,null,null,null,null,null,null,null,null,null,"","","","",""]
[null,null,null,null,null,null,null,null,null,null,null,null,null,null,null,null,null,"","","","",""]
[null,null,null,null,null,null,null,null,null,null,null,null,null,null,null,null,null,"","","","",""]
[null,null,null,null,null,null,null,null,null,null,null,null,null,null,null,null,null,"","","","",""]
[null,null,null,null,null,null,null,null,null,null,null,null,null,null,null,null,null,"","","","",""]
[null,null,null,null,null,null,null,null,null,null,null,null,null,null,null,null,null,"","","","",""]
[null,null,null,null,null,null,null,null,null,null,null,null,null,null,null,null,null,"","","","",""]
[null,null,null,null,null,null,null,null,null,null,null,null,null,null,null,null,null,"","","","",""]
[null,null,null,null,null,null,null,null,null,null,null,null,null,null,null,null,null,"","","","",""]
[null,null,null,null,null,null,null,null,null,null,null,null,null,null,null,null,null,"","","","",""]
[null,null,null,null,null,null,null,null,null,null,null,null,null,null,null,null,null,"","","","",""]
[null,null,null,null,null,null,null,null,null,null,null,null,null,null,null,null,null,"","","","",""]
[null,null,null,null,null,null,null,null,null,null,null,null,null,null,null,null,null,"","","","",""]
[null,null,null,null,null,null,null,null,null,null,null,null,null,null,null,null,null,"","","","",""]
[null,null,null,null,null,null,null,null,null,null,null,null,null,null,null,null,null,"","","","",""]
[null,null,null,null,null,null,null,null,null,null,null,null,null,null,null,null,null,"","","","",""]
[null,null,null,null,null,null,"図７　処理結果",null,null,null,null,null,null,null,null,null,1,"0001",0,0,0,1]
[null,null,null,null,null,null,null,null,null,null,null,null,null,null,null,null,null,"","","","",""]
[null,null,null,null,null,null,null,null,null,null,null,null,null,null,null,null,null,"","","","",""]
[null,null,null,null,null,null,null,null,null,null,null,null,null,null,null,null,null,"","","","",""]
[null,null,null,null,null,null,null,null,null,null,null,null,null,null,null,null,null,"","","","",""]
[null,null,null,null,null,null,null,null,null,null,null,null,null,null,null,null,null,"","","","",""]
[null,null,null,null,null,null,null,null,null,null,null,null,null,null,null,null,null,"","","","",""]
[null,null,null,null,null,null,null,null,null,null,null,null,null,null,null,null,null,"","","","",""]
[null,null,null,null,null,null,null,null,null,null,null,null,null,null,null,null,null,"","","","",""]
[null,null,null,null,null,null,null,null,null,null,null,null,null,null,null,null,null,"","","","",""]
[null,null,null,null,null,null,null,null,null,null,null,null,null,null,null,null,null,"","","","",""]
[null,null,null,null,null,null,null,null,null,null,null,null,null,null,null,null,null,"","","","",""]
[null,null,null,null,null,null,null,null,null,null,null,null,null,null,null,null,null,"","","","",""]
[null,null,null,null,null,null,null,null,null,null,null,null,null,null,null,null,null,"","","","",""]
[null,null,null,null,null,null,null,null,null,null,null,null,null,null,null,null,null,"","","","",""]
[null,null,null,null,null,null,null,null,null,null,null,null,null,null,null,null,null,"","","","",""]
[null,"◆出力形式：文字のみ",null,null,null,null,null,null,null,null,null,null,null,null,null,null,1,"0001",0,0,0,1]
[null,null,null,null,null,null,null,null,null,null,null,null,null,null,null,null,null,"","","","",""]
[null,null,"（１）一つのセルに一つのocr結果(ocr結果は行単位で出力される)が当てはまるように、計算する。",null,null,null,null,null,null,null,null,null,null,null,null,null,1,"0001",0,0,0,1]
[null,null,"(ocr結果の、左上座標点、左下座標点から計算する)",null,null,null,null,null,null,null,null,null,null,null,null,null,1,"0001",0,0,0,1]
[null,null,"（２）行の高さをフォントサイズにそろえる",null,null,null,null,null,null,null,null,null,null,null,null,null,1,"0001",0,0,0,1]
[null,null,"（３）縦書きがある場合は、縦方向のセル結合を行う。ただし、テキストが書かれているセルと重なっている場合は、",null,null,null,null,null,null,null,null,null,null,null,null,null,1,"0001",0,0,0,1]
[null,null,"テキストが書かれているセルの、一つ手前のセルまでの結合に留める。更に、横方向のセル結合は行わない",null,null,null,null,null,null,null,null,null,null,null,null,null,1,"0001",0,0,0,1]
[null,null,"（４）テキスト結果(ocr機能on時のみ)を張り付ける。",null,null,null,null,null,null,null,null,null,null,null,null,null,1,"0001",0,0,0,1]
[null,null,null,null,null,null,null,null,null,null,null,null,null,null,null,null,null,"","","","",""]
[null,null,null,null,null,null,null,null,null,null,null,null,null,null,null,null,null,"","","","",""]
[null,null,null,null,null,null,null,null,null,null,null,null,null,null,null,null,null,"","","","",""]
[null,null,null,null,null,null,null,null,null,null,null,null,null,null,null,null,null,"","","","",""]
[null,null,null,null,null,null,null,null,null,null,null,null,null,null,null,null,null,"","","","",""]
[null,null,null,null,null,null,null,null,null,null,null,null,null,null,null,null,null,"","","","",""]
[null,null,null,null,null,null,null,null,null,null,null,null,null,null,null,null,null,"","","","",""]
[null,null,null,null,null,null,null,null,null,null,null,null,null,null,null,null,null,"","","","",""]
[null,null,null,null,null,null,null,null,null,null,null,null,null,null,null,null,null,"","","","",""]
[null,null,null,null,null,null,null,null,null,null,null,null,null,null,null,null,null,"","","","",""]
[null,null,null,null,null,null,null,null,null,null,null,null,null,null,null,null,null,"","","","",""]
[null,null,null,null,null,null,null,null,null,null,null,null,null,null,null,null,null,"","","","",""]
[null,null,null,null,null,null,null,null,null,null,null,null,null,null,null,null,null,"","","","",""]
[null,null,null,null,null,null,null,null,null,null,null,null,null,null,null,null,null,"","","","",""]
[null,null,null,null,null,null,null,null,null,null,null,null,null,null,null,null,null,"","","","",""]
[null,null,null,null,null,null,null,null,null,null,null,null,null,null,null,null,null,"","","","",""]
[null,null,null,null,null,null,null,null,null,null,null,null,null,null,null,null,null,"","","","",""]
[null,null,null,null,null,null,null,null,null,null,null,null,null,null,null,null,null,"","","","",""]
[null,null,null,null,null,null,null,null,null,null,null,null,null,null,null,null,null,"","","","",""]
[null,null,null,null,null,null,null,null,null,null,null,null,null,null,null,null,null,"","","","",""]
[null,null,null,null,null,null,null,null,null,null,null,null,null,null,null,null,null,{"$f":"IF(Q259=\"\",\"\",DEC2BIN(Q259,4))","v":""},{"$f":"IF($R259=\"\",\"\",VALUE(MID($R259,1,1)))","v":""},{"$f":"IF($R259=\"\",\"\",VALUE(MID($R259,2,1)))","v":""},{"$f":"IF($R259=\"\",\"\",VALUE(MID($R259,3,1)))","v":""},{"$f":"IF($R259=\"\",\"\",VALUE(MID($R259,4,1)))","v":""}]
[null,null,null,null,null,null,null,null,null,null,null,null,null,null,null,null,null,"","","","",""]
[null,null,null,null,null,null,null,null,null,null,null,null,null,null,null,null,null,"","","","",""]
[null,null,null,null,null,null,null,null,null,null,null,null,null,null,null,null,null,"","","","",""]
[null,null,null,null,null,null,null,null,null,null,null,null,null,null,null,null,null,"","","","",""]
[null,null,null,null,null,null,null,null,null,null,null,null,null,null,null,null,null,"","","","",""]
[null,null,null,null,null,null,null,null,null,null,null,null,null,null,null,null,null,"","","","",""]
[null,null,null,null,null,null,null,null,null,null,null,null,null,null,null,null,null,"","","","",""]
[null,null,null,null,null,null,null,null,null,null,null,null,null,null,null,null,null,"","","","",""]
[null,null,null,null,null,null,"図８　処理結果",null,null,null,null,null,null,null,null,null,1,"0001",0,0,0,1]
[null,null,null,null,null,null,null,null,null,null,null,null,null,null,null,null,null,"","","","",""]
[null,null,null,null,null,null,null,null,null,null,null,null,null,null,null,null,null,"","","","",""]
[null,null,null,null,null,null,null,null,null,null,null,null,null,null,null,null,null,"","","","",""]
[null,null,null,null,null,null,null,null,null,null,null,null,null,null,null,null,null,"","","","",""]
[null,null,null,null,null,null,null,null,null,null,null,null,null,null,null,null,null,"","","","",""]
[null,null,null,null,null,null,null,null,null,null,null,null,null,null,null,null,null,"","","","",""]
[null,null,null,null,null,null,null,null,null,null,null,null,null,null,null,null,null,"","","","",""]
[null,null,null,null,null,null,null,null,null,null,null,null,null,null,null,null,null,"","","","",""]
[null,null,null,null,null,null,null,null,null,null,null,null,null,null,null,null,null,"","","","",""]
[null,null,null,null,null,null,null,null,null,null,null,null,null,null,null,null,null,"","","","",""]
[null,null,null,null,null,null,null,null,null,null,null,null,null,null,null,null,null,"","","","",""]
[null,null,null,null,null,null,null,null,null,null,null,null,null,null,null,null,null,"","","","",""]
[null,null,null,null,null,null,null,null,null,null,null,null,null,null,null,null,null,"","","","",""]
[null,null,null,null,null,null,null,null,null,null,null,null,null,null,null,null,null,"","","","",""]
[null,null,null,null,null,null,null,null,null,null,null,null,null,null,null,null,null,"","","","",""]
[null,null,null,null,null,null,null,null,null,null,null,null,null,null,null,null,null,"","","","",""]
[null,null,null,null,null,null,null,null,null,null,null,null,null,null,null,null,null,"","","","",""]
[null,null,null,null,null,null,null,null,null,null,null,null,null,null,null,null,null,"","","","",""]
[null,null,null,null,null,null,null,null,null,null,null,null,null,null,null,null,null,"","","","",""]
[null,"◆出力形式：画像のみ",null,null,null,null,null,null,null,null,null,null,null,null,null,null,1,"0001",0,0,0,1]
[null,null,null,null,null,null,null,null,null,null,null,null,null,null,null,null,null,"","","","",""]
[null,null,"（１）スキャン画像だけをはりつける(OCR機能off時)",null,null,null,null,null,null,null,null,null,null,null,null,null,1,"0001",0,0,0,1]
[null,null,null,null,null,null,null,null,null,null,null,null,null,null,null,null,null,"","","","",""]
[null,null,null,null,null,null,null,null,null,null,null,null,null,null,null,null,null,"","","","",""]
[null,null,null,null,null,null,null,null,null,null,null,null,null,null,null,null,null,"","","","",""]
[null,null,null,null,null,null,null,null,null,null,null,null,null,null,null,null,null,"","","","",""]
[null,null,null,null,null,null,null,null,null,null,null,null,null,null,null,null,null,"","","","",""]
[null,null,null,null,null,null,null,null,null,null,null,null,null,null,null,null,null,"","","","",""]
[null,null,null,null,null,null,null,null,null,null,null,null,null,null,null,null,null,"","","","",""]
[null,null,null,null,null,null,null,null,null,null,null,null,null,null,null,null,null,"","","","",""]
[null,null,null,null,null,null,null,null,null,null,null,null,null,null,null,null,null,"","","","",""]
[null,null,null,null,null,null,null,null,null,null,null,null,null,null,null,null,null,"","","","",""]
[null,null,null,null,null,null,null,null,null,null,null,null,null,null,null,null,null,"","","","",""]
[null,null,null,null,null,null,null,null,null,null,null,null,null,null,null,null,null,"","","","",""]
[null,null,null,null,null,null,null,null,null,null,null,null,null,null,null,null,null,"","","","",""]
[null,null,null,null,null,null,null,null,null,null,null,null,null,null,null,null,null,"","","","",""]
[null,null,null,null,null,null,null,null,null,null,null,null,null,null,null,null,null,"","","","",""]
[null,null,null,null,null,null,null,null,null,null,null,null,null,null,null,null,null,"","","","",""]
[null,null,null,null,null,null,null,null,null,null,null,null,null,null,null,null,null,"","","","",""]
[null,null,null,null,null,null,null,null,null,null,null,null,null,null,null,null,null,"","","","",""]
[null,null,null,null,null,null,null,null,null,null,null,null,null,null,null,null,null,"","","","",""]
[null,null,null,null,null,null,null,null,null,null,null,null,null,null,null,null,null,"","","","",""]
[null,null,null,null,null,null,null,null,null,null,null,null,null,null,null,null,null,"","","","",""]
[null,null,null,null,null,null,null,null,null,null,null,null,null,null,null,null,null,"","","","",""]
[null,null,null,null,null,null,null,null,null,null,null,null,null,null,null,null,null,"","","","",""]
[null,null,null,null,null,null,null,null,null,null,null,null,null,null,null,null,null,"","","","",""]
[null,null,null,null,null,null,null,null,null,null,null,null,null,null,null,null,null,"","","","",""]
[null,null,null,null,null,null,null,null,null,null,null,null,null,null,null,null,null,"","","","",""]
[null,null,null,null,null,null,null,null,null,null,null,null,null,null,null,null,null,"","","","",""]
[null,null,null,null,null,null,null,null,null,null,null,null,null,null,null,null,null,"","","","",""]
[null,null,null,null,null,null,null,null,null,null,null,null,null,null,null,null,null,"","","","",""]
[null,null,null,null,null,null,"図９　処理結果",null,null,null,null,null,null,null,null,null,1,"0001",0,0,0,1]
[null,null,null,null,null,null,null,null,null,null,null,null,null,null,null,null,null,"","","","",""]
[null,null,null,null,null,null,null,null,null,null,null,null,null,null,null,null,null,"","","","",""]
[null,null,null,null,null,null,null,null,null,null,null,null,null,null,null,null,null,{"$f":"IF(Q323=\"\",\"\",DEC2BIN(Q323,4))","v":""},{"$f":"IF($R323=\"\",\"\",VALUE(MID($R323,1,1)))","v":""},{"$f":"IF($R323=\"\",\"\",VALUE(MID($R323,2,1)))","v":""},{"$f":"IF($R323=\"\",\"\",VALUE(MID($R323,3,1)))","v":""},{"$f":"IF($R323=\"\",\"\",VALUE(MID($R323,4,1)))","v":""}]
[null,null,null,null,null,null,null,null,null,null,null,null,null,null,null,null,null,"","","","",""]
[null,null,null,null,null,null,null,null,null,null,null,null,null,null,null,null,null,"","","","",""]
[null,null,null,null,null,null,null,null,null,null,null,null,null,null,null,null,null,"","","","",""]
[null,null,null,null,null,null,null,null,null,null,null,null,null,null,null,null,null,"","","","",""]
[null,null,null,null,null,null,null,null,null,null,null,null,null,null,null,null,null,"","","","",""]
[null,null,null,null,null,null,null,null,null,null,null,null,null,null,null,null,null,"","","","",""]
[null,null,null,null,null,null,null,null,null,null,null,null,null,null,null,null,null,"","","","",""]
[null,null,null,null,null,null,null,null,null,null,null,null,null,null,null,null,null,"","","","",""]
[null,null,null,null,null,null,null,null,null,null,null,null,null,null,null,null,null,"","","","",""]
[null,null,null,null,null,null,null,null,null,null,null,null,null,null,null,null,null,"","","","",""]
[null,null,null,null,null,null,null,null,null,null,null,null,null,null,null,null,null,"","","","",""]
[null,null,null,null,null,null,null,null,null,null,null,null,null,null,null,null,null,"","","","",""]
[null,null,null,null,null,null,null,null,null,null,null,null,null,null,null,null,null,"","","","",""]
[null,null,null,null,null,null,null,null,null,null,null,null,null,null,null,null,null,"","","","",""]
[null,null,null,null,null,null,null,null,null,null,null,null,null,null,null,null,null,"","","","",""]
[null,null,null,null,null,null,null,null,null,null,null,null,null,null,null,null,null,"","","","",""]
[null,null,null,null,null,null,null,null,null,null,null,null,null,null,null,null,null,"","","","",""]
[null,null,null,null,null,null,null,null,null,null,null,null,null,null,null,null,null,"","","","",""]
[null,null,null,null,null,null,null,null,null,null,null,null,null,null,null,null,null,"","","","",""]
[null,null,null,null,null,null,null,null,null,null,null,null,null,null,null,null,null,"","","","",""]
[null,null,null,null,null,null,null,null,null,null,null,null,null,null,null,null,null,"","","","",""]
[null,"※Excelファイル出力時の複数ページ対応",null,null,null,null,null,null,null,null,null,null,null,null,null,null,1,"0001",0,0,0,1]
[null,null,null,null,null,null,null,null,null,null,null,null,null,null,null,null,null,"","","","",""]
[null,null,"1ページごとに別シートで用意する。",null,null,null,null,null,null,null,null,null,null,null,null,null,1,"0001",0,0,0,1]
[null,null,"(1シートだけでは、標準表示で、何ページスキャンしたのかが一目で分かりにくいため)",null,null,null,null,null,null,null,null,null,null,null,null,null,1,"0001",0,0,0,1]
[null,null,"デフォルトでは255ページ(シート)ごとに別ファイルにする。",null,null,null,null,null,null,null,null,null,null,null,null,null,1,"0001",0,0,0,1]
[null,null,"(excel2003だとデフォルト最大シート数が255枚のため)",null,null,null,null,null,null,null,null,null,null,null,null,null,1,"0001",0,0,0,1]
[null,null,"1つのbookに作成できるシート数はユーザーがパネルから設定できる。",null,null,null,null,null,null,null,null,null,null,null,null,null,1,"0001",0,0,0,1]
[null,null,"注意：数十ページスキャンすると(シート数が増加するため)開くのに時間がかかる可能性あり。",null,null,null,null,null,null,null,null,null,null,null,null,null,1,"0001",0,0,0,1]
[null,null,null,null,null,null,null,null,null,null,null,null,null,null,null,null,null,"","","","",""]
[null,null,null,null,null,null,null,null,null,null,null,null,null,null,null,null,null,"","","","",""]
[null,null,null,null,null,null,null,null,null,null,null,null,null,null,null,null,null,"","","","",""]
[null,null,null,null,null,null,null,null,null,null,null,null,null,null,null,null,null,"","","","",""]
[null,null,null,null,null,null,null,null,null,null,null,null,null,null,null,null,null,"","","","",""]
[null,null,null,null,null,null,null,null,null,null,null,null,null,null,null,null,null,"","","","",""]
[null,null,null,null,null,null,null,null,null,null,null,null,null,null,null,null,null,"","","","",""]
[null,null,null,null,null,null,null,null,null,null,null,null,null,null,null,null,null,"","","","",""]
[null,null,null,null,null,null,null,null,null,null,null,null,null,null,null,null,null,"","","","",""]
[null,null,null,null,null,null,null,null,null,null,null,null,null,null,null,null,null,"","","","",""]
[null,null,null,null,null,null,null,null,null,null,null,null,null,null,null,null,null,"","","","",""]
[null,null,null,null,null,null,null,null,null,null,null,null,null,null,null,null,null,"","","","",""]
[null,null,null,null,null,null,null,null,null,null,null,null,null,null,null,null,null,"","","","",""]
[null,null,null,null,null,null,null,null,null,null,null,null,null,null,null,null,null,"","","","",""]
[null,null,null,null,null,null,null,null,null,null,null,null,null,null,null,null,null,"","","","",""]
[null,null,null,null,null,null,null,null,null,null,null,null,null,null,null,null,null,"","","","",""]
[null,null,null,null,null,null,null,null,null,null,null,null,null,null,null,null,null,"","","","",""]
[null,null,null,null,null,null,null,null,null,null,null,null,null,null,null,null,null,"","","","",""]
[null,null,null,null,null,null,null,null,null,null,null,null,null,null,null,null,null,"","","","",""]
[null,null,null,null,null,null,null,null,null,null,null,null,null,null,null,null,null,"","","","",""]
[null,null,null,null,null,null,null,null,null,null,null,null,null,null,null,null,null,"","","","",""]
[null,null,null,null,null,null,null,null,null,null,null,null,null,null,null,null,null,"","","","",""]
[null,null,null,null,null,null,null,null,null,null,null,null,null,null,null,null,null,"","","","",""]
[null,null,null,null,null,null,null,null,null,null,null,null,null,null,null,null,null,"","","","",""]
[null,null,null,null,null,null,null,null,null,null,null,null,null,null,null,null,null,"","","","",""]
[null,null,null,null,null,null,"図１０　複数ページ対応",null,null,null,null,null,null,null,null,null,1,"0001",0,0,0,1]
[null,null,null,null,null,null,null,null,null,null,null,null,null,null,null,null,null,"","","","",""]
[null,null,null,null,null,null,null,null,null,null,null,null,null,null,null,null,null,"","","","",""]
[null,null,null,null,null,null,null,null,null,null,null,null,null,null,null,null,null,"","","","",""]
[null,null,null,null,null,null,null,null,null,null,null,null,null,null,null,null,null,"","","","",""]
[null,null,null,null,null,null,null,null,null,null,null,null,null,null,null,null,null,"","","","",""]
[null,null,null,null,null,null,null,null,null,null,null,null,null,null,null,null,null,"","","","",""]
[null,null,null,null,null,null,null,null,null,null,null,null,null,null,null,null,null,"","","","",""]
[null,null,null,null,null,null,null,null,null,null,null,null,null,null,null,null,null,"","","","",""]
[null,null,null,null,null,null,null,null,null,null,null,null,null,null,null,null,null,{"$f":"IF(Q387=\"\",\"\",DEC2BIN(Q387,4))","v":""},{"$f":"IF($R387=\"\",\"\",VALUE(MID($R387,1,1)))","v":""},{"$f":"IF($R387=\"\",\"\",VALUE(MID($R387,2,1)))","v":""},{"$f":"IF($R387=\"\",\"\",VALUE(MID($R387,3,1)))","v":""},{"$f":"IF($R387=\"\",\"\",VALUE(MID($R387,4,1)))","v":""}]
[null,null,null,null,null,null,null,null,null,null,null,null,null,null,null,null,null,"","","","",""]
[null,null,null,null,null,null,null,null,null,null,null,null,null,null,null,null,null,"","","","",""]
[null,null,null,null,null,null,null,null,null,null,null,null,null,null,null,null,null,"","","","",""]
[null,null,null,null,null,null,null,null,null,null,null,null,null,null,null,null,null,"","","","",""]
[null,null,null,null,null,null,null,null,null,null,null,null,null,null,null,null,null,"","","","",""]
[null,null,null,null,null,null,null,null,null,null,null,null,null,null,null,null,null,"","","","",""]
[null,null,null,null,null,null,null,null,null,null,null,null,null,null,null,null,null,"","","","",""]
[null,null,null,null,null,null,null,null,null,null,null,null,null,null,null,null,null,"","","","",""]
[null,null,null,null,null,null,null,null,null,null,null,null,null,null,null,null,null,"","","","",""]
[null,null,null,null,null,null,null,null,null,null,null,null,null,null,null,null,null,"","","","",""]
[null,null,null,null,null,null,null,null,null,null,null,null,null,null,null,null,null,"","","","",""]
[null,null,null,null,null,null,null,null,null,null,null,null,null,null,null,null,null,"","","","",""]
[null,null,null,null,null,null,null,null,null,null,null,null,null,null,null,null,null,"","","","",""]
[null,"【Zeus5BK以降】（*1）",null,null,null,null,null,null,null,null,null,null,null,null,null,null,1,"0001",0,0,0,1]
[null,null,null,null,null,null,null,null,null,null,null,null,null,null,null,null,null,"","","","",""]
[null,"※Word,Excelファイル出力時の表構造再現対応",null,null,null,null,null,null,null,null,null,null,null,null,null,null,1,"0001",0,0,0,1]
[null,null,"(下記、太字部分を追加対応する)",null,null,null,null,null,null,null,null,null,null,null,null,null,1,"0001",0,0,0,1]
[null,null,null,null,null,null,null,null,null,null,null,null,null,null,null,null,null,"","","","",""]
[null,null,"Excel形式",null,null,null,null,null,null,null,null,null,null,null,null,null,1,"0001",0,0,0,1]
[null,null,"(1)文字優先：OCR結果のみ出力する。表領域は表として再現する",null,null,null,null,null,null,null,null,null,null,null,null,null,1,"0001",0,0,0,1]
[null,null,"(2)文字と画像：シートの左側に入力画像を貼り付け、右側にOCR結果を貼りつけて出力する。表領域は表として再現する",null,null,null,null,null,null,null,null,null,null,null,null,null,1,"0001",0,0,0,1]
[null,null,"※表再現は表のセル構造の再現を指し、点線や色つきの罫線は黒実線として再現する。セル色の再現は未対応。",null,null,null,null,null,null,null,null,null,null,null,null,null,1,"0001",0,0,0,1]
[null,null,null,null,null,null,null,null,null,null,null,null,null,null,null,null,null,"","","","",""]
[null,null,"Word形式",null,null,null,null,null,null,null,null,null,null,null,null,null,1,"0001",0,0,0,1]
[null,null,"(1)文字優先：OCR結果のみ出力する。表領域は表として再現する",null,null,null,null,null,null,null,null,null,null,null,null,null,1,"0001",0,0,0,1]
[null,null,"(2)画像優先：入力画像の背後にOCR結果を隠ぺいして貼り付ける(サーチャブル機能)",null,null,null,null,null,null,null,null,null,null,null,null,null,1,"0001",0,0,0,1]
[null,null,"(3)文字と画像：奇数ページに入力画像を貼り付け、偶数ページにOCR結果を貼りつけて出力する。表領域は表として再現する",null,null,null,null,null,null,null,null,null,null,null,null,null,1,"0001",0,0,0,1]
[null,null,"※表再現は表のセル構造の再現を指し、点線や色つきの罫線は黒実線として再現する。セル色の再現は未対応。",null,null,null,null,null,null,null,null,null,null,null,null,null,1,"0001",0,0,0,1]
[null,null,null,null,null,null,null,null,null,null,null,null,null,null,null,null,null,"","","","",""]
[null,null,null,null,null,null,null,null,null,null,null,null,null,null,null,null,null,"","","","",""]
[null,null,"＜OOXML　表構造再現仕様＞",null,null,null,null,null,null,null,null,null,null,null,null,null,1,"0001",0,0,0,1]
[null,null,null,null,null,null,null,null,null,null,null,null,null,null,null,null,null,"","","","",""]
[null,null,"表の持つ特性の内、再現可能のものと再現できないもの（未対応含む）がある。表１にまとめる",null,null,null,null,null,null,null,null,null,null,null,null,null,1,"0001",0,0,0,1]
[null,null,null,null,null,null,null,null,null,null,null,null,null,null,null,null,null,"","","","",""]
[null,null,"表１ 表再現仕様",null,null,null,null,null,null,null,null,null,null,null,null,null,1,"0001",0,0,0,1]
[null,null,null,"構成要素",null,"説明",null,null,null,null,null,null,null,null,null,null,1,"0001",0,0,0,1]
[null,null,"再現する特性","セルの数・配置",null,null,null,null,null,null,null,null,null,null,null,null,1,"0001",0,0,0,1]
[null,null,null,"セルのサイズ",null,"高さ・幅を再現する。",null,null,null,null,null,null,null,null,null,null,1,"0001",0,0,0,1]
[null,null,null,"セルの結合",null,"行・列・行列方向のセルの結合を再現する。\nまた、カギ型など複雑な形状も再現する。",null,null,null,null,null,null,null,null,null,null,1,"0001",0,0,0,1]
[null,null,null,"セル内文字の配置",null,"行方向：左・中央・右揃え\n列方向：上・中央・下揃え を再現する。",null,null,null,null,null,null,null,null,null,null,1,"0001",0,0,0,1]
[null,null,null,"OCR文字色",null,"原稿の文字色を再現する\n※ただし、黒文字に含まれるグレー文字など、2色以上の無彩色が同一文字列内に含まれる場合のみ平均色で再現する。",null,null,null,null,null,null,null,null,null,null,1,"0001",0,0,0,1]
[null,null,null,"OCR文字の方向",null,"縦書き・横書きを再現する。",null,null,null,null,null,null,null,null,null,null,1,"0001",0,0,0,1]
[null,null,"再現しない特性","セル色",null,"常に白色とする。\n※Zeus5BK以降の機種で対応予定",null,null,null,null,null,null,null,null,null,null,1,"0001",0,0,0,1]
[null,null,null,"罫線色",null,"常に黒色とする。",null,null,null,null,null,null,null,null,null,null,1,"0001",0,0,0,1]
[null,null,null,"罫線の太さ",null,"常にデフォルト線（0.5pt）とする。",null,null,null,null,null,null,null,null,null,null,1,"0001",0,0,0,1]
[null,null,null,"罫線の形状",null,"常に実線とする。",null,null,null,null,null,null,null,null,null,null,1,"0001",0,0,0,1]
[null,null,null,"下地色",null,"常に無色とする。",null,null,null,null,null,null,null,null,null,null,1,"0001",0,0,0,1]
[null,null,null,null,null,null,null,null,null,null,null,null,null,null,null,null,null,"","","","",""]
[null,null,"【その他の仕様】",null,null,null,null,null,null,null,null,null,null,null,null,null,1,"0001",0,0,0,1]
[null,null,"・表外の文字について\n　Excel出力の場合のみ、文字列をExcelのセルに埋め込む必要があることから、原稿の文字列の位置関係によりレイアウトがズレる場合がある。ただし、表画像はセルのサイズを基準としているため正しく再現可能である。",null,null,null,null,null,null,null,null,null,null,null,null,null,1,"0001",0,0,0,1]
[null,null,null,null,null,null,null,null,null,null,null,null,null,null,null,null,null,"","","","",""]
[null,null,null,null,null,null,null,null,null,null,null,null,null,null,null,null,null,"","","","",""]
[null,null,null,null,null,null,null,null,null,null,null,null,null,null,null,null,null,"","","","",""]
[null,null,null,null,null,null,null,null,null,null,null,null,null,null,null,null,null,"","","","",""]
[null,null,null,null,null,null,null,null,null,null,null,null,null,null,null,null,null,"","","","",""]
[null,null,null,null,null,null,null,null,null,null,null,null,null,null,null,null,null,"","","","",""]
[null,null,null,null,null,null,null,null,null,null,null,null,null,null,null,null,null,"","","","",""]
[null,null,null,null,null,null,null,null,null,null,null,null,null,null,null,null,null,"","","","",""]
[null,null,null,null,null,null,null,null,null,null,null,null,null,null,null,null,null,"","","","",""]
[null,null,null,null,null,null,null,null,null,null,null,null,null,null,null,null,null,"","","","",""]
[null,null,null,null,null,null,null,null,null,null,null,null,null,null,null,null,null,"","","","",""]
[null,null,null,null,null,null,null,null,null,null,null,null,null,null,null,null,null,"","","","",""]
[null,null,null,null,null,null,null,null,null,null,null,null,null,null,null,null,null,"","","","",""]
[null,null,null,null,null,null,null,null,null,null,null,null,null,null,null,null,null,{"$f":"IF(Q451=\"\",\"\",DEC2BIN(Q451,4))","v":""},{"$f":"IF($R451=\"\",\"\",VALUE(MID($R451,1,1)))","v":""},{"$f":"IF($R451=\"\",\"\",VALUE(MID($R451,2,1)))","v":""},{"$f":"IF($R451=\"\",\"\",VALUE(MID($R451,3,1)))","v":""},{"$f":"IF($R451=\"\",\"\",VALUE(MID($R451,4,1)))","v":""}]
[null,null,null,null,null,null,null,null,null,null,null,null,null,null,null,null,null,"","","","",""]
[null,null,null,null,null,null,null,null,null,null,null,null,null,null,null,null,null,"","","","",""]
[null,null,null,null,null,null,null,null,null,null,null,null,null,null,null,null,null,"","","","",""]
[null,null,null,null,null,null,null,null,null,null,null,null,null,null,null,null,null,"","","","",""]
[null,null,null,null,null,null,null,null,null,null,null,null,null,null,null,null,null,"","","","",""]
[null,null,null,null,null,null,null,null,null,null,null,null,null,null,null,null,null,"","","","",""]
[null,null,null,null,null,null,null,null,null,null,null,null,null,null,null,null,null,"","","","",""]
[null,null,null,null,null,null,null,null,null,null,null,null,null,null,null,null,null,"","","","",""]
[null,null,null,null,null,null,null,null,null,null,null,null,null,null,null,null,null,"","","","",""]
[null,null,null,null,null,null,null,null,null,null,null,null,null,null,null,null,null,"","","","",""]
[null,null,null,null,null,null,null,null,null,null,null,null,null,null,null,null,null,"","","","",""]
[null,null,null,null,null,null,null,null,null,null,null,null,null,null,null,null,null,"","","","",""]
[null,null,null,null,null,null,null,null,null,null,null,null,null,null,null,null,null,"","","","",""]
[null,null,null,null,null,null,null,null,null,null,null,null,null,null,null,null,null,"","","","",""]
[null,null,null,null,null,null,null,null,null,null,null,null,null,null,null,null,null,"","","","",""]
[null,null,null,null,null,null,null,null,null,null,null,null,null,null,null,null,null,"","","","",""]
[null,null,null,null,null,null,null,null,null,null,null,null,null,null,null,null,null,"","","","",""]
[null,null,null,null,null,null,null,null,null,null,null,null,null,null,null,null,null,"","","","",""]
[null,null,null,null,null,null,null,null,null,null,null,null,null,null,null,null,null,"","","","",""]
[null,null,null,null,null,null,null,null,null,null,null,null,null,null,null,null,null,"","","","",""]
[null,null,null,null,null,null,null,null,null,null,null,null,null,null,null,null,null,"","","","",""]
[null,null,null,null,null,null,null,null,null,null,null,null,null,null,null,null,null,"","","","",""]
[null,null,null,null,null,null,null,null,null,null,null,null,null,null,null,null,null,"","","","",""]
[null,null,null,null,null,null,null,null,null,null,null,null,null,null,null,null,null,"","","","",""]
[null,null,null,null,null,null,null,null,null,null,null,null,null,null,null,null,null,"","","","",""]
[null,null,null,null,null,null,null,null,null,null,null,null,null,null,null,null,null,"","","","",""]
[null,null,null,null,null,null,null,null,null,null,null,null,null,null,null,null,null,"","","","",""]
[null,null,null,null,null,null,null,null,null,null,null,null,null,null,null,null,null,"","","","",""]
[null,null,null,null,null,null,null,null,null,null,null,null,null,null,null,null,null,"","","","",""]
[null,null,null,null,null,null,null,null,null,null,null,null,null,null,null,null,null,"","","","",""]
[null,null,null,null,null,null,null,null,null,null,null,null,null,null,null,null,null,"","","","",""]
[null,null,null,null,null,null,null,null,null,null,null,null,null,null,null,null,null,"","","","",""]
[null,null,null,null,null,null,"図１１　表構造再現対応",null,null,null,null,null,null,null,null,null,1,"0001",0,0,0,1]
[null,null,null,null,null,null,null,null,null,null,null,null,null,null,null,null,null,"","","","",""]
[null,null,null,null,null,null,null,null,null,null,null,null,null,null,null,null,null,"","","","",""]
[null,null,null,null,null,null,null,null,null,null,null,null,null,null,null,null,null,"","","","",""]
[null,null,null,null,null,null,null,null,null,null,null,null,null,null,null,null,null,"","","","",""]
[null,null,null,null,null,null,null,null,null,null,null,null,null,null,null,null,null,"","","","",""]
[null,null,"【履歴】",null,null,null,null,null,null,null,null,null,null,null,null,null,1,"0001",0,0,0,1]
[null,null,null,"2011/XX/XX 初版　塚本",null,null,null,null,null,null,null,null,null,null,null,null,1,"0001",0,0,0,1]
[null,null,null,null,"UV-00973 OfficeOpenXML形式ファイル生成機能",null,null,null,null,null,null,null,null,null,null,null,1,"0001",0,0,0,1]
[null,null,null,null,"UV仕様書の添付ファイル（下記）より部分転記",null,null,null,null,null,null,null,null,null,null,null,1,"0001",0,0,0,1]
[null,null,null,null,"・3.Word追加仕様.pdf",null,null,null,null,null,null,null,null,null,null,null,1,"0001",0,0,0,1]
[null,null,null,null,"・9.110617顧客要望検討会excel機能仕様修正説明.pdf",null,null,null,null,null,null,null,null,null,null,null,1,"0001",0,0,0,1]
[null,null,null,null,null,null,null,null,null,null,null,null,null,null,null,null,null,"","","","",""]
[null,null,null,"2014/4/16 改訂 1OPS服部",null,null,null,null,null,null,null,null,null,null,null,null,1,"0001",0,0,0,1]
[null,null,null,null,"Zeus5BK対応",null,null,null,null,null,null,null,null,null,null,null,1,"0001",0,0,0,1]
[null,null,null,null,"(*1)UV-01451 OfficeOpenXML形式ファイル(Word,Excel)の表構造再現対応",null,null,null,null,null,null,null,null,null,null,null,1,"0001",0,0,0,1]
[null,null,null,null,"UV-01451の納入仕様、及びUV仕様書の添付ファイル（下記）より部分転記",null,null,null,null,null,null,null,null,null,null,null,1,"0001",0,0,0,1]
[null,null,null,null,"・UV表構造再現仕様.xlsx",null,null,null,null,null,null,null,null,null,null,null,1,"0001",0,0,0,1]
[null,null,null,null,null,null,null,null,null,null,null,null,null,null,null,"e","e","e","e","e","e","e"]
[]
[]
[]
[]
[]
[]
[]
[]
[]
[]
[]
[]
[]
[]
[]
[]
[]
[]
[]
[]
[]
[]
[]
[]
[]
[]
[]
[]
[]
[]
[]
[]
[]
[]
[]
[]
[]
[]
[]
[]
[]
[]
[]
[]
[]
[]
[]
[]
[]
[]
[]
[]
[]
[]
[]
[]
[]
[]
[]
[]
[]
[]
[]
[]
[]
[]
[]
[]
[]
[]
[]
[]
[]
[]
[]
[]
[]
[]
[]
[]
[]
[]
[]
[]
[]
[]
[]
[]
[]
[]
[]
[]
[]
[]
[]
[]
[]
[]
[]
[]
[]
[]
[]
[]
[]
[]
[]
[]
[]
[]
[]
[]
[]
[]
[]
[]
[]
[]
[]
[]
[]
[]
[]
[]
[]
[]
[]
[]
[]
[]
[]
[]
[]
[]
[]
[]
[]
[]
[]
[]
[]
[]
[]
[]
[]
[]
[]
[]
[]
[]
[]
[]
[]
[]
[]
[]
[]
[]
[]
[]
[]
[]
[]
[]
[]
[]
[]
[]
[]
[]
[]
[]
[]
[]
[]
[]
[]
[]
[]
[]
[]
[]
[]
[]
[]
[]
[]
[]
[]
[]
[]
[]
[]
[]
[]
[]
[]
[]
[]
[]
[]
[]
[]
[]
[]
[]
[]
[]
[]
[]
[]
[]
[]
[]
[]
[]
[]
[]
[]
[]
[]
[]
[]
[]
[]
[]
[]
[]
[]
[]
[]
[]
[]
[]
[]
[]
[]
[]
[]
[]
[]
[]
[]
[]
[]
[]
[]
[]
[]
[]
[]
[]
[]
[]
[]
[]
[]
[]
[]
[]
[]
[]
[]
[]
[]
[]
[]
[]
[]
[]
[]
[]
[]
[]
[]
[]
[]
[]
[]
[]
[]
[]
[]
[]
[]
[]
[]
[]
[]
[]
[]
[]
[]
[]
[]
[]
[]
[]
[]
[]
[]
[]
[]
[]
[]
[]
[]
[]
[]
[]
[]
[]
[]
[]
[]
[]
[]
[]
[]
[]
[]
[]
[]
[]
[]
[]
[]
[]
[]
[]
[]
[]
[]
[]
[]
[]
[]
[]
[]
[]
[]
[]
[]
[]
[]
[]
[]
[]
[]
[]
[]
[]
[]
[]
[]
[]
[]
[]
[]
[]
[]
[]
[]
[]
[]
[]
[]
[]
[]
[]
[]
[]
[]
[]
[]
[]
[]
[]
[]
[]
[]
[]
[]
[]
[]
[]
[]
[]
[]
[]
[]
[]
[]
[]
[]
[]
[]
[]
[]
[]
[]
[]
[]
[]
[]
[]
[]
[]
[]
[]
[]
[]
[]
[]
[]
[]
[]
[]
[]
[]
[]
[]
[]
[]
[]
[]
[]
[]
[]
[]
[]
[]
[]
[]
[]
[]
[]
[]
[]
[]
[]
[]
[]
[]
[]
[]
[]
[]
[]
[]
[]
[]
[]
[]
[]
[]
[]
[]
[]
[]
[]
[]
[]
[]
[]
[]
[]
[]
[]
[]
[]
[]
[]
[]
[]
[]
[]
[]
[]
[]
[]
[]
[]
[]
[]
[]
[]
[]
[]
[]
[]
[]
[]
[]
[]
[]
[]
[]
[null,null,null,null,null,null,null,null,null,null,null,null,null,null,null,0]
[null,null,null,null,null,null,null,null,null,null,null,null,null,null,null,0]
[null,null,null,null,null,null,null,null,null,null,null,null,null,null,null,0]
[null,null,null,null,null,null,null,null,null,null,null,null,null,null,null,0]
[null,null,null,null,null,null,null,null,null,null,null,null,null,null,null,0]
[null,null,null,null,null,null,null,null,null,null,null,null,null,null,null,0]
[null,null,null,null,null,null,null,null,null,null,null,null,null,null,null,0]
[null,null,null,null,null,null,null,null,null,null,null,null,null,null,null,0]
[null,null,null,null,null,null,null,null,null,null,null,null,null,null,null,0]
[null,null,null,null,null,null,null,null,null,null,null,null,null,null,null,0]
[null,null,null,null,null,null,null,null,null,null,null,null,null,null,null,0]
[null,null,null,null,null,null,null,null,null,null,null,null,null,null,null,0]
[null,null,null,null,null,null,null,null,null,null,null,null,null,null,null,0]
[null,null,null,null,null,null,null,null,null,null,null,null,null,null,null,0]
[null,null,null,null,null,null,null,null,null,null,null,null,null,null,null,0]

{"sheet":"リファイン履歴","index":6,"n_rows":1005,"n_cols":12,"rows_kept":1005,"cut":false,"hidden":false,"merged":[]}
[null,null,null,null,null,"SP","F","BIN",4,3,2,1]
[null,"日付","版数","作業者","内容",null,null,{"$f":"IF(G2=\"\",\"\",DEC2BIN(G2,4))","v":""},{"$f":"IF($H2=\"\",\"\",VALUE(MID($H2,1,1)))","v":""},{"$f":"IF($H2=\"\",\"\",VALUE(MID($H2,2,1)))","v":""},{"$f":"IF($H2=\"\",\"\",VALUE(MID($H2,3,1)))","v":""},{"$f":"IF($H2=\"\",\"\",VALUE(MID($H2,4,1)))","v":""}]
[null,"2012-07-18","112版","河邉","履歴の適用欄をすべて\"－\"に変更。\n機能名称間の1行の適用をすべて○に変更",null,1,{"$f":"IF(G3=\"\",\"\",DEC2BIN(G3,4))","v":"0001"},{"$f":"IF($H3=\"\",\"\",VALUE(MID($H3,1,1)))","v":0},{"$f":"IF($H3=\"\",\"\",VALUE(MID($H3,2,1)))","v":0},{"$f":"IF($H3=\"\",\"\",VALUE(MID($H3,3,1)))","v":0},{"$f":"IF($H3=\"\",\"\",VALUE(MID($H3,4,1)))","v":1}]
[null,"2012-08-06","112版","上手","・「搭載機能仕様書(スキャナ編)」シートの機種適用欄の「Rhein」「Mosel」「Thames」「LaPlata」「Ganges」「LaPlataM」「GangesM」の列を削除。\n・「搭載機能仕様書(スキャナ編)」シートの修正発行版の99版以下の列を削除\n上記の削除前を参照の際は112版を参照ください。",null,1,"0001",0,0,0,1]
[null,null,null,null,null,"e","e","e","e","e","ee","e"]
[]
[]
[]
[]
[]
[]
[]
[]
[]
[]
[]
[]
[]
[]
[]
[]
[]
[]
[]
[]
[]
[]
[]
[]
[]
[]
[]
[]
[]
[]
[]
[]
[]
[]
[]
[]
[]
[]
[]
[]
[]
[]
[]
[]
[]
[]
[]
[]
[]
[]
[]
[]
[]
[]
[]
[]
[]
[]
[]
[]
[]
[]
[]
[]
[]
[]
[]
[]
[]
[]
[]
[]
[]
[]
[]
[]
[]
[]
[]
[]
[]
[]
[]
[]
[]
[]
[]
[]
[]
[]
[]
[]
[]
[]
[]
[]
[]
[]
[]
[]
[]
[]
[]
[]
[]
[]
[]
[]
[]
[]
[]
[]
[]
[]
[]
[]
[]
[]
[]
[]
[]
[]
[]
[]
[]
[]
[]
[]
[]
[]
[]
[]
[]
[]
[]
[]
[]
[]
[]
[]
[]
[]
[]
[]
[]
[]
[]
[]
[]
[]
[]
[]
[]
[]
[]
[]
[]
[]
[]
[]
[]
[]
[]
[]
[]
[]
[]
[]
[]
[]
[]
[]
[]
[]
[]
[]
[]
[]
[]
[]
[]
[]
[]
[]
[]
[]
[]
[]
[]
[]
[]
[]
[]
[]
[]
[]
[]
[]
[]
[]
[]
[]
[]
[]
[]
[]
[]
[]
[]
[]
[]
[]
[]
[]
[]
[]
[]
[]
[]
[]
[]
[]
[]
[]
[]
[]
[]
[]
[]
[]
[]
[]
[]
[]
[]
[]
[]
[]
[]
[]
[]
[]
[]
[]
[]
[]
[]
[]
[]
[]
[]
[]
[]
[]
[]
[]
[]
[]
[]
[]
[]
[]
[]
[]
[]
[]
[]
[]
[]
[]
[]
[]
[]
[]
[]
[]
[]
[]
[]
[]
[]
[]
[]
[]
[]
[]
[]
[]
[]
[]
[]
[]
[]
[]
[]
[]
[]
[]
[]
[]
[]
[]
[]
[]
[]
[]
[]
[]
[]
[]
[]
[]
[]
[]
[]
[]
[]
[]
[]
[]
[]
[]
[]
[]
[]
[]
[]
[]
[]
[]
[]
[]
[]
[]
[]
[]
[]
[]
[]
[]
[]
[]
[]
[]
[]
[]
[]
[]
[]
[]
[]
[]
[]
[]
[]
[]
[]
[]
[]
[]
[]
[]
[]
[]
[]
[]
[]
[]
[]
[]
[]
[]
[]
[]
[]
[]
[]
[]
[]
[]
[]
[]
[]
[]
[]
[]
[]
[]
[]
[]
[]
[]
[]
[]
[]
[]
[]
[]
[]
[]
[]
[]
[]
[]
[]
[]
[]
[]
[]
[]
[]
[]
[]
[]
[]
[]
[]
[]
[]
[]
[]
[]
[]
[]
[]
[]
[]
[]
[]
[]
[]
[]
[]
[]
[]
[]
[]
[]
[]
[]
[]
[]
[]
[]
[]
[]
[]
[]
[]
[]
[]
[]
[]
[]
[]
[]
[]
[]
[]
[]
[]
[]
[]
[]
[]
[]
[]
[]
[]
[]
[]
[]
[]
[]
[]
[]
[]
[]
[]
[]
[]
[]
[]
[]
[]
[]
[]
[]
[]
[]
[]
[]
[]
[]
[]
[]
[]
[]
[]
[]
[]
[]
[]
[]
[]
[]
[]
[]
[]
[]
[]
[]
[]
[]
[]
[]
[]
[]
[]
[]
[]
[]
[]
[]
[]
[]
[]
[]
[]
[]
[]
[]
[]
[]
[]
[]
[]
[]
[]
[]
[]
[]
[]
[]
[]
[]
[]
[]
[]
[]
[]
[]
[]
[]
[]
[]
[]
[]
[]
[]
[]
[]
[]
[]
[]
[]
[]
[]
[]
[]
[]
[]
[]
[]
[]
[]
[]
[]
[]
[]
[]
[]
[]
[]
[]
[]
[]
[]
[]
[]
[]
[]
[]
[]
[]
[]
[]
[]
[]
[]
[]
[]
[]
[]
[]
[]
[]
[]
[]
[]
[]
[]
[]
[]
[]
[]
[]
[]
[]
[]
[]
[]
[]
[]
[]
[]
[]
[]
[]
[]
[]
[]
[]
[]
[]
[]
[]
[]
[]
[]
[]
[]
[]
[]
[]
[]
[]
[]
[]
[]
[]
[]
[]
[]
[]
[]
[]
[]
[]
[]
[]
[]
[]
[]
[]
[]
[]
[]
[]
[]
[]
[]
[]
[]
[]
[]
[]
[]
[]
[]
[]
[]
[]
[]
[]
[]
[]
[]
[]
[]
[]
[]
[]
[]
[]
[]
[]
[]
[]
[]
[]
[]
[]
[]
[]
[]
[]
[]
[]
[]
[]
[]
[]
[]
[]
[]
[]
[]
[]
[]
[]
[]
[]
[]
[]
[]
[]
[]
[]
[]
[]
[]
[]
[]
[]
[]
[]
[]
[]
[]
[]
[]
[]
[]
[]
[]
[]
[]
[]
[]
[]
[]
[]
[]
[]
[]
[]
[]
[]
[]
[]
[]
[]
[]
[]
[]
[]
[]
[]
[]
[]
[]
[]
[]
[]
[]
[]
[]
[]
[]
[]
[]
[]
[]
[]
[]
[]
[]
[]
[]
[]
[]
[]
[]
[]
[]
[]
[]
[]
[]
[]
[]
[]
[]
[]
[]
[]
[]
[]
[]
[]
[]
[]
[]
[]
[]
[]
[]
[]
[]
[]
[]
[]
[]
[]
[]
[]
[]
[]
[]
[]
[]
[]
[]
[]
[]
[]
[]
[]
[]
[]
[]
[]
[]
[]
[]
[]
[]
[]
[]
[]
[]
[]
[]
[]
[]
[]
[]
[]
[]
[]
[]
[]
[]
[]
[]
[]
[]
[]
[]
[]
[]
[]
[]
[]
[]
[]
[]
[]
[]
[]
[]
[]
[]
[]
[]
[]
[]
[]
[]
[]
[]
[]
[]
[]
[]
[]
[]
[]
[]
[]
[]
[]
[]
[]
[]
[]
[]
[]
[]
[]
[]
[]
[]
[]
[]
[]
[]
[]
[]
[]
[]
[]
[]
[]
[]
[]
[]
[]
[]
[]
[]
[]
[]
[]
[]
[]
[]
[]
[]
[]
[]
[]
[]
[]
[]
[]
[]
[]
[]
[]
[]
[]
[]
[]
[]
[]
[]
[]
[]
[]
[]
[]
[]
[]
[]
[]
[]
[]
[]
[]
[]
[]
[]
[]
[]
[]
[]
[]
[]
[]
[]
[]
[]
[]
[]
[]
[]
[]
[]
[]
[]
[]
[]
[]
[null,null,null,null,null,0]
[null,null,null,null,null,0]
[null,null,null,null,null,0]
[null,null,null,null,null,0]
[null,null,null,null,null,0]